{"text_format":"1","workbook":"xlsx","n_sheets":5,"sheets":["База клиентов","Ассортимент","Заказ дня","Отчет_Бух","Архив"],"not_rendered":{"charts":0,"images":0,"macros":1,"external_links":0,"defined_names":4,"comments":0,"pivot_tables":0},"unopened":[],"bounds":{"document_bytes":16777216,"sheet_cells":100000,"rows_first":2000,"rows_last":500,"rows_between":2000,"halvings":0,"cell_chars":16384,"cell_head_chars":4096},"cells_cut":0,"cells_raw":0,"read":"whole","date_system":"1900"}

{"sheet":"База клиентов","index":0,"n_rows":56,"n_cols":13,"rows_kept":56,"cut":false,"hidden":false,"merged":[]}
["Ресторан","Юр. Лицо","Встречает","Адрес","Район (метро)","Холдинг","Контактное лицо","Должность","Телефон","Почта","Менеджер","Статус","Закупка"]
[1,1,null,null,null,null,null,null,null,null,null,"Клиент"]
[2,2,null,null,null,null,null,null,null,null,null,"Клиент"]
["Ромашка",3,null,null,null,null,null,null,null,null,null,"Клиент"]
[4,4,null,null,null,null,null,null,null,null,null,"Клиент"]
[5,5,null,null,null,null,null,null,null,null,null,"Клиент"]
["Роза",6,null,null,null,null,null,null,null,null,null,"Клиент"]
[7,7,null,null,null,null,null,null,null,null,null,"Клиент"]
[8,8,null,null,null,null,null,null,null,null,null,"Клиент"]
[9,9,null,null,null,null,null,null,null,null,null,"Клиент"]
["Тюльпан",10,null,null,null,null,null,null,null,null,null,"Клиент"]
[11,11,null,null,null,null,null,null,null,null,null,"Клиент"]
[12,12,null,null,null,null,null,null,null,null,null,"Клиент"]
[13,13,null,null,null,null,null,null,null,null,null,"Клиент"]
[14,14,null,null,null,null,null,null,null,null,null,"Клиент"]
[15,15,null,null,null,null,null,null,null,null,null,"Клиент"]
[16,16,null,null,null,null,null,null,null,null,null,"Клиент"]
[17,17,null,null,null,null,null,null,null,null,null,"Клиент"]
[18,18,null,null,null,null,null,null,null,null,null,"Клиент"]
[19,19,null,null,null,null,null,null,null,null,null,"Клиент"]
[20,20,null,null,null,null,null,null,null,null,null,"Клиент"]
[21,21,null,null,null,null,null,null,null,null,null,"В работе"]
[22,22,null,null,null,null,null,null,null,null,null,"В работе"]
[23,23,null,null,null,null,null,null,null,null,null,"В работе"]
[24,24,null,null,null,null,null,null,null,null,null,"Клиент"]
[25,25,null,null,null,null,null,null,null,null,null,"Клиент"]
[26,26,null,null,null,null,null,null,null,null,null,"В работе"]
[27,27,null,null,null,null,null,null,null,null,null,"В работе"]
[28,28,null,null,null,null,null,null,null,null,null,"В работе"]
[29,29,null,null,null,null,null,null,null,null,null,"В работе"]
[30,30,null,null,null,null,null,null,null,null,null,"В работе"]
[31,31,null,null,null,null,null,null,null,null,null,"В работе"]
[32,32,null,null,null,null,null,null,null,null,null,"В работе"]
[33,33,null,null,null,null,null,null,null,null,null,"Пауза"]
[34,34,null,null,null,null,null,null,null,null,null,"В работе"]
[35,35,null,null,null,null,null,null,null,null,null,"В работе"]
[36,36,null,null,null,null,null,null,null,null,null,"В работе"]
[37,37,null,null,null,null,null,null,null,null,null,"Отпал"]
[38,38,null,null,null,null,null,null,null,null,null,"Клиент"]
[39,39,null,null,null,null,null,null,null,null,null,"Клиент"]
[40,40,null,null,null,null,null,null,null,null,null,"Отпал"]
[41,41,null,null,null,null,null,null,null,null,null,"В работе"]
[42,42,null,null,null,null,null,null,null,null,null,"Отпал"]
[43,43,null,null,null,null,null,null,null,null,null,"Отпал"]
[44,44,null,null,null,null,null,null,null,null,null,"Клиент"]
[45,45,null,null,null,null,null,null,null,null,null,"В работе"]
[46,46,null,null,null,null,null,null,null,null,null,"В работе"]
[47,47,null,null,null,null,null,null,null,null,null,"Отпал"]
[48,48,null,null,null,null,null,null,null,null,null,"В работе"]
[49,49,null,null,null,null,null,null,null,null,null,"В работе"]
[50,50,null,null,null,null,null,null,null,null,null,"Клиент"]
[51,51,null,null,null,null,null,null,null,null,null,"В работе"]
[52,52,null,null,null,null,null,null,null,null,null,"Клиент"]
[53,53,null,null,null,null,null,null,null,null,null,"Клиент"]
[54,54,null,null,null,null,null,null,null,null,null,"Клиент"]
[55,null,null,null,null,null,null,null,null,null,null,"Клиент"]

{"sheet":"Ассортимент","index":1,"n_rows":47,"n_cols":5,"rows_kept":47,"cut":false,"hidden":false,"merged":[]}
[]
[]
[]
["Категория","Ассортимент","Цена покупки","Цена продажи","Наличие на складе"]
[]
[]
["1.птица","Голень куриная",120,155]
["1.птица","крылья куриные",102,135]
["1.птица","кура тушка калибр 1,0",105,135]
["1.птица","кура тушка калибр 1,1",110,140]
["1.птица","кура тушка калибр 1,3",105,130]
["1.птица","кура шаурма",185,210]
["1.птица","куриная грудка филе",173,193]
["1.птица","куриное филе с бедра ",203,230]
["1.птица","Печень куриная",129,159]
["1.птица","суповой набор кура",40,70]
["1.птица","филе индейки",250,295]
["2.говядина","Глазной мускул",400,440,100]
["2.говядина","говядина вырезка белоруссия",640,695]
["2.говядина","говядина вырезка бразилия",700,760]
["2.говядина","говядина вырезка парагвай",720,770]
["2.говядина","Говядина кнакл",380,455]
["2.говядина","говядина лопатка",312,352]
["2.говядина","Печень говяжья",154,178]
["2.говядина","Язык Говяжий",425,465]
["3.свинина","ребра свиные",245,285]
["3.свинина","свинина вырезка филе",310,340]
["3.свинина","свинина корейка",265,320]
["3.свинина","свинина корейка на кости",200,230]
["3.свинина","свинина лопатка",230,270]
["3.свинина","свинина окорок",230,270]
["3.свинина","свинина окорок на кости",210,240]
["3.свинина","свинина шея",270,300]
["4.рыба","креветки 21/25",660,700]
["4.рыба","креветки тигровые 16/20",978,1048]
["4.рыба","минтай тушка",120,158]
["4.рыба","морской коктель",null,280]
["4.рыба","треска филе на коже",275,310]
["4.рыба","Филе минтая",120,157]
["4.рыба","филе пангасиуса",148,180]
["4.рыба","филе судака",315,348]
["4.рыба","филе тилапии",200,230]
["4.рыба","филе трески",280,310]
["5.баранина","Нога Баранья б/к",400,440]
["6.яйцо","яйцо отборное",5.2,5.8]
["6.яйцо","яйцо первый сорт",4.8,5.5]
["7.прочее","мука предпортовая упаковка 2 кг",58.3,64.3]

{"sheet":"Заказ дня","index":2,"n_rows":110,"n_cols":32,"rows_kept":110,"cut":false,"hidden":false,"merged":[[5,24,5,25],[5,26,5,27],[5,14,5,15],[5,16,5,17],[5,18,5,19],[5,20,5,21],[5,22,5,23],[5,4,5,5],[5,6,5,7],[5,8,5,9],[5,10,5,11],[5,12,5,13],[2,4,2,5],[2,29,2,31],[2,24,2,25],[2,20,2,21],[2,22,2,23],[2,18,2,19],[2,12,2,13],[2,14,2,15],[2,16,2,17],[2,10,2,11],[2,8,2,9],[2,6,2,7],[2,26,2,27]]}
[null,null,null,null,null,null,null,null,null,null,null,null,{"$f":"COUNTIF(E7:E110,\">0\")","v":3}]
[null,null,null,null,{"$f":"TODAY()","v":"2015-06-03"}]
[null,null,null,null,"Ромашка",null,"Роза",null,"Тюльпан",null,"Ресторан",null,"Ресторан",null,"Ресторан",null,"Ресторан",null,"Ресторан",null,"Ресторан",null,"Ресторан",null,"Ресторан",null,"Ресторан",null,"ИНФО","ИТОГ"]
[{"$f":"INDEX(Ассортимент!$A:$D,ROW(),COLUMN())","v":"Категория"},{"$f":"INDEX(Ассортимент!$A:$D,ROW(),COLUMN())","v":"Ассортимент"},{"$f":"INDEX(Ассортимент!$A:$D,ROW(),COLUMN())","v":"Цена покупки"},{"$f":"INDEX(Ассортимент!$A:$D,ROW(),COLUMN())","v":"Цена продажи"},"Вес","Цена продажи","Вес","Цена продажи","Вес","Цена продажи","Вес","Цена продажи","Вес","Цена продажи","Вес","Цена продажи","Вес","Цена продажи","Вес","Цена продажи","Вес","Цена продажи","Вес","Цена продажи","Вес","Цена продажи","Вес","Цена продажи","ИНФО","Цена покупки","Вес","Цена продажи"]
[{"$f":"INDEX(Ассортимент!$A:$D,ROW(),COLUMN())","v":0},{"$f":"INDEX(Ассортимент!$A:$D,ROW(),COLUMN())","v":0},{"$f":"INDEX(Ассортимент!$A:$D,ROW(),COLUMN())","v":0},{"$f":"INDEX(Ассортимент!$A:$D,ROW(),COLUMN())","v":0}]
[{"$f":"INDEX(Ассортимент!$A:$D,ROW(),COLUMN())","v":0},{"$f":"INDEX(Ассортимент!$A:$D,ROW(),COLUMN())","v":0},{"$f":"INDEX(Ассортимент!$A:$D,ROW(),COLUMN())","v":0},{"$f":"INDEX(Ассортимент!$A:$D,ROW(),COLUMN())","v":0},{"$f":"VLOOKUP(E$3,'База клиентов'!$A:$B,2,FALSE)","v":3},null,{"$f":"VLOOKUP(G$3,'База клиентов'!$A:$B,2,FALSE)","v":6},null,{"$f":"VLOOKUP(I$3,'База клиентов'!$A:$B,2,FALSE)","v":10},null,{"$f":"VLOOKUP(K$3,'База клиентов'!$A:$B,2,FALSE)","v":"Юр. Лицо"},null,{"$f":"VLOOKUP(M$3,'База клиентов'!$A:$B,2,FALSE)","v":"Юр. Лицо"},null,{"$f":"VLOOKUP(O$3,'База клиентов'!$A:$B,2,FALSE)","v":"Юр. Лицо"},null,{"$f":"VLOOKUP(Q$3,'База клиентов'!$A:$B,2,FALSE)","v":"Юр. Лицо"},null,{"$f":"VLOOKUP(S$3,'База клиентов'!$A:$B,2,FALSE)","v":"Юр. Лицо"},null,{"$f":"VLOOKUP(U$3,'База клиентов'!$A:$B,2,FALSE)","v":"Юр. Лицо"},null,{"$f":"VLOOKUP(W$3,'База клиентов'!$A:$B,2,FALSE)","v":"Юр. Лицо"},null,{"$f":"VLOOKUP(Y$3,'База клиентов'!$A:$B,2,FALSE)","v":"Юр. Лицо"},null,{"$f":"VLOOKUP(AA$3,'База клиентов'!$A:$B,2,FALSE)","v":"Юр. Лицо"}]
[{"$f":"INDEX(Ассортимент!$A:$D,ROW(),COLUMN())","v":"1.птица"},{"$f":"INDEX(Ассортимент!$A:$D,ROW(),COLUMN())","v":"Голень куриная"},{"$f":"INDEX(Ассортимент!$A:$D,ROW(),COLUMN())","v":120},{"$f":"INDEX(Ассортимент!$A:$D,ROW(),COLUMN())","v":155},20,{"$f":"IFERROR($E7*$D7,0)","v":3100},null,{"$f":"IFERROR($G7*$D7,0)","v":0},null,{"$f":"IFERROR($I7*$D7,0)","v":0},null,{"$f":"IFERROR($K7*$D7,0)","v":0},null,{"$f":"IFERROR($M7*$D7,0)","v":0},null,{"$f":"IFERROR($O7*$D7,0)","v":0},null,{"$f":"IFERROR($Q7*$D7,0)","v":0},null,{"$f":"IFERROR($S7*$D7,0)","v":0},null,{"$f":"IFERROR($U7*$D7,0)","v":0},null,{"$f":"IFERROR($W7*$D7,0)","v":0},null,{"$f":"IFERROR($Y7*$D7,0)","v":0},null,{"$f":"IFERROR($AA7*$D7,0)","v":0},null,{"$f":"C7","v":120},{"$f":"SUM(E7,G7,I7,K7,M7,O7,Q7,S7,U7,W7,Y7,AA7)","v":20},{"$f":"SUM(F7,H7,J7,L7,N7,P7,R7,T7,V7,X7,Z7,AB7)","v":3100}]
[{"$f":"INDEX(Ассортимент!$A:$D,ROW(),COLUMN())","v":"1.птица"},{"$f":"INDEX(Ассортимент!$A:$D,ROW(),COLUMN())","v":"крылья куриные"},{"$f":"INDEX(Ассортимент!$A:$D,ROW(),COLUMN())","v":102},{"$f":"INDEX(Ассортимент!$A:$D,ROW(),COLUMN())","v":135},40,5400,null,0,null,0,null,0,null,{"$f":"IFERROR($M8*$D8,0)","v":0},null,0,null,0,null,0,null,0,null,0,null,0,null,0,null,{"$f":"C8","v":102},{"$f":"SUM(E8,G8,I8,K8,M8,O8,Q8,S8,U8,W8,Y8,AA8)","v":40},{"$f":"SUM(F8,H8,J8,L8,N8,P8,R8,T8,V8,X8,Z8,AB8)","v":5400}]
[{"$f":"INDEX(Ассортимент!$A:$D,ROW(),COLUMN())","v":"1.птица"},{"$f":"INDEX(Ассортимент!$A:$D,ROW(),COLUMN())","v":"кура тушка калибр 1,0"},{"$f":"INDEX(Ассортимент!$A:$D,ROW(),COLUMN())","v":105},{"$f":"INDEX(Ассортимент!$A:$D,ROW(),COLUMN())","v":135},null,0,100,13500,null,0,null,0,null,0,null,0,null,0,null,0,null,0,null,0,null,0,null,0,null,105,100,13500]
[{"$f":"INDEX(Ассортимент!$A:$D,ROW(),COLUMN())","v":"1.птица"},{"$f":"INDEX(Ассортимент!$A:$D,ROW(),COLUMN())","v":"кура тушка калибр 1,1"},{"$f":"INDEX(Ассортимент!$A:$D,ROW(),COLUMN())","v":110},{"$f":"INDEX(Ассортимент!$A:$D,ROW(),COLUMN())","v":140},null,0,null,0,null,0,null,0,null,0,null,0,null,0,null,0,null,0,null,0,null,0,null,0,null,110,0,0]
[{"$f":"INDEX(Ассортимент!$A:$D,ROW(),COLUMN())","v":"1.птица"},{"$f":"INDEX(Ассортимент!$A:$D,ROW(),COLUMN())","v":"кура тушка калибр 1,3"},{"$f":"INDEX(Ассортимент!$A:$D,ROW(),COLUMN())","v":105},{"$f":"INDEX(Ассортимент!$A:$D,ROW(),COLUMN())","v":130},null,0,null,0,null,0,null,0,null,0,null,0,null,0,null,0,null,0,null,0,null,0,null,0,null,105,0,0]
[{"$f":"INDEX(Ассортимент!$A:$D,ROW(),COLUMN())","v":"1.птица"},{"$f":"INDEX(Ассортимент!$A:$D,ROW(),COLUMN())","v":"кура шаурма"},{"$f":"INDEX(Ассортимент!$A:$D,ROW(),COLUMN())","v":185},{"$f":"INDEX(Ассортимент!$A:$D,ROW(),COLUMN())","v":210},null,0,20,4200,null,0,null,0,null,0,null,0,null,0,null,0,null,0,null,0,null,0,null,0,null,185,20,4200]
[{"$f":"INDEX(Ассортимент!$A:$D,ROW(),COLUMN())","v":"1.птица"},{"$f":"INDEX(Ассортимент!$A:$D,ROW(),COLUMN())","v":"куриная грудка филе"},{"$f":"INDEX(Ассортимент!$A:$D,ROW(),COLUMN())","v":173},{"$f":"INDEX(Ассортимент!$A:$D,ROW(),COLUMN())","v":193},null,0,null,0,null,0,null,0,null,0,null,0,null,0,null,0,null,0,null,0,null,0,null,0,null,173,0,0]
[{"$f":"INDEX(Ассортимент!$A:$D,ROW(),COLUMN())","v":"1.птица"},{"$f":"INDEX(Ассортимент!$A:$D,ROW(),COLUMN())","v":"куриное филе с бедра "},{"$f":"INDEX(Ассортимент!$A:$D,ROW(),COLUMN())","v":203},{"$f":"INDEX(Ассортимент!$A:$D,ROW(),COLUMN())","v":230},null,0,null,0,30,6900,null,0,null,0,null,0,null,0,null,0,null,0,null,0,null,0,null,0,null,203,30,6900]
[{"$f":"INDEX(Ассортимент!$A:$D,ROW(),COLUMN())","v":"1.птица"},{"$f":"INDEX(Ассортимент!$A:$D,ROW(),COLUMN())","v":"Печень куриная"},{"$f":"INDEX(Ассортимент!$A:$D,ROW(),COLUMN())","v":129},{"$f":"INDEX(Ассортимент!$A:$D,ROW(),COLUMN())","v":159},60,9540,null,0,null,0,null,0,null,0,null,0,null,0,null,0,null,0,null,0,null,0,null,0,null,129,60,9540]
[{"$f":"INDEX(Ассортимент!$A:$D,ROW(),COLUMN())","v":"1.птица"},{"$f":"INDEX(Ассортимент!$A:$D,ROW(),COLUMN())","v":"суповой набор кура"},{"$f":"INDEX(Ассортимент!$A:$D,ROW(),COLUMN())","v":40},{"$f":"INDEX(Ассортимент!$A:$D,ROW(),COLUMN())","v":70},null,0,null,0,null,0,null,0,null,0,null,0,null,0,null,0,null,0,null,0,null,0,null,0,null,40,0,0]
[{"$f":"INDEX(Ассортимент!$A:$D,ROW(),COLUMN())","v":"1.птица"},{"$f":"INDEX(Ассортимент!$A:$D,ROW(),COLUMN())","v":"филе индейки"},{"$f":"INDEX(Ассортимент!$A:$D,ROW(),COLUMN())","v":250},{"$f":"INDEX(Ассортимент!$A:$D,ROW(),COLUMN())","v":295},null,0,null,0,null,0,null,0,null,0,null,0,null,0,null,0,null,0,null,0,null,0,null,0,null,250,0,0]
[{"$f":"INDEX(Ассортимент!$A:$D,ROW(),COLUMN())","v":"2.говядина"},{"$f":"INDEX(Ассортимент!$A:$D,ROW(),COLUMN())","v":"Глазной мускул"},{"$f":"INDEX(Ассортимент!$A:$D,ROW(),COLUMN())","v":400},{"$f":"INDEX(Ассортимент!$A:$D,ROW(),COLUMN())","v":440},null,0,null,0,null,0,null,0,null,0,null,0,null,0,null,0,null,0,null,0,null,0,null,0,null,400,0,0]
[{"$f":"INDEX(Ассортимент!$A:$D,ROW(),COLUMN())","v":"2.говядина"},{"$f":"INDEX(Ассортимент!$A:$D,ROW(),COLUMN())","v":"говядина вырезка белоруссия"},{"$f":"INDEX(Ассортимент!$A:$D,ROW(),COLUMN())","v":640},{"$f":"INDEX(Ассортимент!$A:$D,ROW(),COLUMN())","v":695},null,0,null,0,20,13900,null,0,null,0,null,0,null,0,null,0,null,0,null,0,null,0,null,0,null,640,20,13900]
[{"$f":"INDEX(Ассортимент!$A:$D,ROW(),COLUMN())","v":"2.говядина"},{"$f":"INDEX(Ассортимент!$A:$D,ROW(),COLUMN())","v":"говядина вырезка бразилия"},{"$f":"INDEX(Ассортимент!$A:$D,ROW(),COLUMN())","v":700},{"$f":"INDEX(Ассортимент!$A:$D,ROW(),COLUMN())","v":760},null,0,null,0,null,0,null,0,null,0,null,0,null,0,null,0,null,0,null,0,null,0,null,0,null,700,0,0]
[{"$f":"INDEX(Ассортимент!$A:$D,ROW(),COLUMN())","v":"2.говядина"},{"$f":"INDEX(Ассортимент!$A:$D,ROW(),COLUMN())","v":"говядина вырезка парагвай"},{"$f":"INDEX(Ассортимент!$A:$D,ROW(),COLUMN())","v":720},{"$f":"INDEX(Ассортимент!$A:$D,ROW(),COLUMN())","v":770},null,0,null,0,null,0,null,0,null,0,null,0,null,0,null,0,null,0,null,0,null,0,null,0,null,720,0,0]
[{"$f":"INDEX(Ассортимент!$A:$D,ROW(),COLUMN())","v":"2.говядина"},{"$f":"INDEX(Ассортимент!$A:$D,ROW(),COLUMN())","v":"Говядина кнакл"},{"$f":"INDEX(Ассортимент!$A:$D,ROW(),COLUMN())","v":380},{"$f":"INDEX(Ассортимент!$A:$D,ROW(),COLUMN())","v":455},null,0,null,0,null,0,null,0,null,0,null,0,null,0,null,0,null,0,null,0,null,0,null,0,null,380,0,0]
[{"$f":"INDEX(Ассортимент!$A:$D,ROW(),COLUMN())","v":"2.говядина"},{"$f":"INDEX(Ассортимент!$A:$D,ROW(),COLUMN())","v":"говядина лопатка"},{"$f":"INDEX(Ассортимент!$A:$D,ROW(),COLUMN())","v":312},{"$f":"INDEX(Ассортимент!$A:$D,ROW(),COLUMN())","v":352},null,0,null,0,null,0,null,0,null,0,null,0,null,0,null,0,null,0,null,0,null,0,null,0,null,312,0,0]
[{"$f":"INDEX(Ассортимент!$A:$D,ROW(),COLUMN())","v":"2.говядина"},{"$f":"INDEX(Ассортимент!$A:$D,ROW(),COLUMN())","v":"Печень говяжья"},{"$f":"INDEX(Ассортимент!$A:$D,ROW(),COLUMN())","v":154},{"$f":"INDEX(Ассортимент!$A:$D,ROW(),COLUMN())","v":178},null,0,null,0,null,0,null,0,null,0,null,0,null,0,null,0,null,0,null,0,null,0,null,0,null,154,0,0]
[{"$f":"INDEX(Ассортимент!$A:$D,ROW(),COLUMN())","v":"2.говядина"},{"$f":"INDEX(Ассортимент!$A:$D,ROW(),COLUMN())","v":"Язык Говяжий"},{"$f":"INDEX(Ассортимент!$A:$D,ROW(),COLUMN())","v":425},{"$f":"INDEX(Ассортимент!$A:$D,ROW(),COLUMN())","v":465},null,0,null,0,null,0,null,0,null,0,null,0,null,0,null,0,null,0,null,0,null,0,null,0,null,425,0,0]
[{"$f":"INDEX(Ассортимент!$A:$D,ROW(),COLUMN())","v":"3.свинина"},{"$f":"INDEX(Ассортимент!$A:$D,ROW(),COLUMN())","v":"ребра свиные"},{"$f":"INDEX(Ассортимент!$A:$D,ROW(),COLUMN())","v":245},{"$f":"INDEX(Ассортимент!$A:$D,ROW(),COLUMN())","v":285},null,0,null,0,null,0,null,0,null,0,null,0,null,0,null,0,null,0,null,0,null,0,null,0,null,245,0,0]
[{"$f":"INDEX(Ассортимент!$A:$D,ROW(),COLUMN())","v":"3.свинина"},{"$f":"INDEX(Ассортимент!$A:$D,ROW(),COLUMN())","v":"свинина вырезка филе"},{"$f":"INDEX(Ассортимент!$A:$D,ROW(),COLUMN())","v":310},{"$f":"INDEX(Ассортимент!$A:$D,ROW(),COLUMN())","v":340},null,0,null,0,null,0,null,0,null,0,null,0,null,0,null,0,null,0,null,0,null,0,null,0,null,310,0,0]
[{"$f":"INDEX(Ассортимент!$A:$D,ROW(),COLUMN())","v":"3.свинина"},{"$f":"INDEX(Ассортимент!$A:$D,ROW(),COLUMN())","v":"свинина корейка"},{"$f":"INDEX(Ассортимент!$A:$D,ROW(),COLUMN())","v":265},{"$f":"INDEX(Ассортимент!$A:$D,ROW(),COLUMN())","v":320},null,0,null,0,null,0,null,0,null,0,null,0,null,0,null,0,null,0,null,0,null,0,null,0,null,265,0,0]
[{"$f":"INDEX(Ассортимент!$A:$D,ROW(),COLUMN())","v":"3.свинина"},{"$f":"INDEX(Ассортимент!$A:$D,ROW(),COLUMN())","v":"свинина корейка на кости"},{"$f":"INDEX(Ассортимент!$A:$D,ROW(),COLUMN())","v":200},{"$f":"INDEX(Ассортимент!$A:$D,ROW(),COLUMN())","v":230},null,0,null,0,null,0,null,0,null,0,null,0,null,0,null,0,null,0,null,0,null,0,null,0,null,200,0,0]
[{"$f":"INDEX(Ассортимент!$A:$D,ROW(),COLUMN())","v":"3.свинина"},{"$f":"INDEX(Ассортимент!$A:$D,ROW(),COLUMN())","v":"свинина лопатка"},{"$f":"INDEX(Ассортимент!$A:$D,ROW(),COLUMN())","v":230},{"$f":"INDEX(Ассортимент!$A:$D,ROW(),COLUMN())","v":270},null,0,null,0,null,0,null,0,null,0,null,0,null,0,null,0,null,0,null,0,null,0,null,0,null,230,0,0]
[{"$f":"INDEX(Ассортимент!$A:$D,ROW(),COLUMN())","v":"3.свинина"},{"$f":"INDEX(Ассортимент!$A:$D,ROW(),COLUMN())","v":"свинина окорок"},{"$f":"INDEX(Ассортимент!$A:$D,ROW(),COLUMN())","v":230},{"$f":"INDEX(Ассортимент!$A:$D,ROW(),COLUMN())","v":270},null,0,null,0,null,0,null,0,null,0,null,0,null,0,null,0,null,0,null,0,null,0,null,0,null,230,0,0]
[{"$f":"INDEX(Ассортимент!$A:$D,ROW(),COLUMN())","v":"3.свинина"},{"$f":"INDEX(Ассортимент!$A:$D,ROW(),COLUMN())","v":"свинина окорок на кости"},{"$f":"INDEX(Ассортимент!$A:$D,ROW(),COLUMN())","v":210},{"$f":"INDEX(Ассортимент!$A:$D,ROW(),COLUMN())","v":240},null,0,null,0,null,0,null,0,null,0,null,0,null,0,null,0,null,0,null,0,null,0,null,0,null,210,0,0]
[{"$f":"INDEX(Ассортимент!$A:$D,ROW(),COLUMN())","v":"3.свинина"},{"$f":"INDEX(Ассортимент!$A:$D,ROW(),COLUMN())","v":"свинина шея"},{"$f":"INDEX(Ассортимент!$A:$D,ROW(),COLUMN())","v":270},{"$f":"INDEX(Ассортимент!$A:$D,ROW(),COLUMN())","v":300},null,0,null,0,null,0,null,0,null,0,null,0,null,0,null,0,null,0,null,0,null,0,null,0,null,270,0,0]
[{"$f":"INDEX(Ассортимент!$A:$D,ROW(),COLUMN())","v":"4.рыба"},{"$f":"INDEX(Ассортимент!$A:$D,ROW(),COLUMN())","v":"креветки 21/25"},{"$f":"INDEX(Ассортимент!$A:$D,ROW(),COLUMN())","v":660},{"$f":"INDEX(Ассортимент!$A:$D,ROW(),COLUMN())","v":700},null,{"$f":"IFERROR($E34*$D34,0)","v":0},null,0,null,0,null,0,null,0,null,0,null,0,null,0,null,0,null,0,null,0,null,0,null,660,0,0]
[{"$f":"INDEX(Ассортимент!$A:$D,ROW(),COLUMN())","v":"4.рыба"},{"$f":"INDEX(Ассортимент!$A:$D,ROW(),COLUMN())","v":"креветки тигровые 16/20"},{"$f":"INDEX(Ассортимент!$A:$D,ROW(),COLUMN())","v":978},{"$f":"INDEX(Ассортимент!$A:$D,ROW(),COLUMN())","v":1048},null,0,null,0,null,0,null,0,null,0,null,0,null,0,null,0,null,0,null,0,null,0,null,0,null,978,0,0]
[{"$f":"INDEX(Ассортимент!$A:$D,ROW(),COLUMN())","v":"4.рыба"},{"$f":"INDEX(Ассортимент!$A:$D,ROW(),COLUMN())","v":"минтай тушка"},{"$f":"INDEX(Ассортимент!$A:$D,ROW(),COLUMN())","v":120},{"$f":"INDEX(Ассортимент!$A:$D,ROW(),COLUMN())","v":158},null,0,null,0,null,0,null,0,null,0,null,0,null,0,null,0,null,0,null,0,null,0,null,0,null,120,0,0]
[{"$f":"INDEX(Ассортимент!$A:$D,ROW(),COLUMN())","v":"4.рыба"},{"$f":"INDEX(Ассортимент!$A:$D,ROW(),COLUMN())","v":"морской коктель"},{"$f":"INDEX(Ассортимент!$A:$D,ROW(),COLUMN())","v":0},{"$f":"INDEX(Ассортимент!$A:$D,ROW(),COLUMN())","v":280},null,0,null,0,null,0,null,0,null,0,null,0,null,0,null,0,null,0,null,0,null,0,null,0,null,0,0,0]
[{"$f":"INDEX(Ассортимент!$A:$D,ROW(),COLUMN())","v":"4.рыба"},{"$f":"INDEX(Ассортимент!$A:$D,ROW(),COLUMN())","v":"треска филе на коже"},{"$f":"INDEX(Ассортимент!$A:$D,ROW(),COLUMN())","v":275},{"$f":"INDEX(Ассортимент!$A:$D,ROW(),COLUMN())","v":310},null,{"$f":"IFERROR($E38*$D38,0)","v":0},null,0,null,0,null,0,null,0,null,0,null,0,null,0,null,0,null,0,null,0,null,0,null,275,0,0]
[{"$f":"INDEX(Ассортимент!$A:$D,ROW(),COLUMN())","v":"4.рыба"},{"$f":"INDEX(Ассортимент!$A:$D,ROW(),COLUMN())","v":"Филе минтая"},{"$f":"INDEX(Ассортимент!$A:$D,ROW(),COLUMN())","v":120},{"$f":"INDEX(Ассортимент!$A:$D,ROW(),COLUMN())","v":157},null,0,null,0,null,0,null,0,null,0,null,0,null,0,null,0,null,0,null,0,null,0,null,0,null,120,0,0]
[{"$f":"INDEX(Ассортимент!$A:$D,ROW(),COLUMN())","v":"4.рыба"},{"$f":"INDEX(Ассортимент!$A:$D,ROW(),COLUMN())","v":"филе пангасиуса"},{"$f":"INDEX(Ассортимент!$A:$D,ROW(),COLUMN())","v":148},{"$f":"INDEX(Ассортимент!$A:$D,ROW(),COLUMN())","v":180},null,0,null,0,null,0,null,0,null,0,null,0,null,0,null,0,null,0,null,0,null,0,null,0,null,148,0,0]
[{"$f":"INDEX(Ассортимент!$A:$D,ROW(),COLUMN())","v":"4.рыба"},{"$f":"INDEX(Ассортимент!$A:$D,ROW(),COLUMN())","v":"филе судака"},{"$f":"INDEX(Ассортимент!$A:$D,ROW(),COLUMN())","v":315},{"$f":"INDEX(Ассортимент!$A:$D,ROW(),COLUMN())","v":348},null,0,null,0,null,0,null,0,null,0,null,0,null,0,null,0,null,0,null,0,null,0,null,0,null,315,0,0]
[{"$f":"INDEX(Ассортимент!$A:$D,ROW(),COLUMN())","v":"4.рыба"},{"$f":"INDEX(Ассортимент!$A:$D,ROW(),COLUMN())","v":"филе тилапии"},{"$f":"INDEX(Ассортимент!$A:$D,ROW(),COLUMN())","v":200},{"$f":"INDEX(Ассортимент!$A:$D,ROW(),COLUMN())","v":230},null,0,null,0,null,0,null,0,null,0,null,0,null,0,null,0,null,0,null,0,null,0,null,0,null,200,0,0]
[{"$f":"INDEX(Ассортимент!$A:$D,ROW(),COLUMN())","v":"4.рыба"},{"$f":"INDEX(Ассортимент!$A:$D,ROW(),COLUMN())","v":"филе трески"},{"$f":"INDEX(Ассортимент!$A:$D,ROW(),COLUMN())","v":280},{"$f":"INDEX(Ассортимент!$A:$D,ROW(),COLUMN())","v":310},null,0,null,0,null,0,null,0,null,0,null,0,null,0,null,0,null,0,null,0,null,0,null,0,null,280,0,0]
[{"$f":"INDEX(Ассортимент!$A:$D,ROW(),COLUMN())","v":"5.баранина"},{"$f":"INDEX(Ассортимент!$A:$D,ROW(),COLUMN())","v":"Нога Баранья б/к"},{"$f":"INDEX(Ассортимент!$A:$D,ROW(),COLUMN())","v":400},{"$f":"INDEX(Ассортимент!$A:$D,ROW(),COLUMN())","v":440},null,0,null,0,null,0,null,0,null,0,null,0,null,0,null,0,null,0,null,0,null,0,null,0,null,400,0,0]
[{"$f":"INDEX(Ассортимент!$A:$D,ROW(),COLUMN())","v":"6.яйцо"},{"$f":"INDEX(Ассортимент!$A:$D,ROW(),COLUMN())","v":"яйцо отборное"},{"$f":"INDEX(Ассортимент!$A:$D,ROW(),COLUMN())","v":5.2},{"$f":"INDEX(Ассортимент!$A:$D,ROW(),COLUMN())","v":5.8},null,0,null,0,null,0,null,0,null,0,null,0,null,0,null,0,null,0,null,0,null,0,null,0,null,5.2,0,0]
[{"$f":"INDEX(Ассортимент!$A:$D,ROW(),COLUMN())","v":"6.яйцо"},{"$f":"INDEX(Ассортимент!$A:$D,ROW(),COLUMN())","v":"яйцо первый сорт"},{"$f":"INDEX(Ассортимент!$A:$D,ROW(),COLUMN())","v":4.8},{"$f":"INDEX(Ассортимент!$A:$D,ROW(),COLUMN())","v":5.5},null,0,null,0,null,0,null,0,null,0,null,0,null,0,null,0,null,0,null,0,null,0,null,0,null,4.8,0,0]
[{"$f":"INDEX(Ассортимент!$A:$D,ROW(),COLUMN())","v":"7.прочее"},{"$f":"INDEX(Ассортимент!$A:$D,ROW(),COLUMN())","v":"мука предпортовая упаковка 2 кг"},{"$f":"INDEX(Ассортимент!$A:$D,ROW(),COLUMN())","v":58.3},{"$f":"INDEX(Ассортимент!$A:$D,ROW(),COLUMN())","v":64.3},null,0,null,0,null,0,null,0,null,0,null,0,null,0,null,0,null,0,null,0,null,0,null,0,null,58.3,0,0]
[{"$f":"INDEX(Ассортимент!$A:$D,ROW(),COLUMN())","v":0},{"$f":"INDEX(Ассортимент!$A:$D,ROW(),COLUMN())","v":0},{"$f":"INDEX(Ассортимент!$A:$D,ROW(),COLUMN())","v":0},{"$f":"INDEX(Ассортимент!$A:$D,ROW(),COLUMN())","v":0},null,0,null,0,null,0,null,0,null,0,null,0,null,0,null,0,null,0,null,0,null,0,null,0,null,0,0,0]
[{"$f":"INDEX(Ассортимент!$A:$D,ROW(),COLUMN())","v":0},{"$f":"INDEX(Ассортимент!$A:$D,ROW(),COLUMN())","v":0},{"$f":"INDEX(Ассортимент!$A:$D,ROW(),COLUMN())","v":0},{"$f":"INDEX(Ассортимент!$A:$D,ROW(),COLUMN())","v":0},null,0,null,0,null,0,null,0,null,0,null,0,null,0,null,0,null,0,null,0,null,0,null,0,null,0,0,0]
[{"$f":"INDEX(Ассортимент!$A:$D,ROW(),COLUMN())","v":0},{"$f":"INDEX(Ассортимент!$A:$D,ROW(),COLUMN())","v":0},{"$f":"INDEX(Ассортимент!$A:$D,ROW(),COLUMN())","v":0},{"$f":"INDEX(Ассортимент!$A:$D,ROW(),COLUMN())","v":0},null,0,null,0,null,0,null,0,null,0,null,0,null,0,null,0,null,0,null,0,null,0,null,0,null,0,0,0]
[{"$f":"INDEX(Ассортимент!$A:$D,ROW(),COLUMN())","v":0},{"$f":"INDEX(Ассортимент!$A:$D,ROW(),COLUMN())","v":0},{"$f":"INDEX(Ассортимент!$A:$D,ROW(),COLUMN())","v":0},{"$f":"INDEX(Ассортимент!$A:$D,ROW(),COLUMN())","v":0},null,0,null,0,null,0,null,0,null,0,null,0,null,0,null,0,null,0,null,0,null,0,null,0,null,0,0,0]
[{"$f":"INDEX(Ассортимент!$A:$D,ROW(),COLUMN())","v":0},{"$f":"INDEX(Ассортимент!$A:$D,ROW(),COLUMN())","v":0},{"$f":"INDEX(Ассортимент!$A:$D,ROW(),COLUMN())","v":0},{"$f":"INDEX(Ассортимент!$A:$D,ROW(),COLUMN())","v":0},null,0,null,0,null,0,null,0,null,0,null,0,null,0,null,0,null,0,null,0,null,0,null,0,null,0,0,0]
[{"$f":"INDEX(Ассортимент!$A:$D,ROW(),COLUMN())","v":0},{"$f":"INDEX(Ассортимент!$A:$D,ROW(),COLUMN())","v":0},{"$f":"INDEX(Ассортимент!$A:$D,ROW(),COLUMN())","v":0},{"$f":"INDEX(Ассортимент!$A:$D,ROW(),COLUMN())","v":0},null,0,null,0,null,0,null,0,null,0,null,0,null,0,null,0,null,0,null,0,null,0,null,0,null,0,0,0]
[{"$f":"INDEX(Ассортимент!$A:$D,ROW(),COLUMN())","v":0},{"$f":"INDEX(Ассортимент!$A:$D,ROW(),COLUMN())","v":0},{"$f":"INDEX(Ассортимент!$A:$D,ROW(),COLUMN())","v":0},{"$f":"INDEX(Ассортимент!$A:$D,ROW(),COLUMN())","v":0},null,0,null,0,null,0,null,0,null,0,null,0,null,0,null,0,null,0,null,0,null,0,null,0,null,0,0,0]
[{"$f":"INDEX(Ассортимент!$A:$D,ROW(),COLUMN())","v":0},{"$f":"INDEX(Ассортимент!$A:$D,ROW(),COLUMN())","v":0},{"$f":"INDEX(Ассортимент!$A:$D,ROW(),COLUMN())","v":0},{"$f":"INDEX(Ассортимент!$A:$D,ROW(),COLUMN())","v":0},null,0,null,0,null,0,null,0,null,0,null,0,null,0,null,0,null,0,null,0,null,0,null,0,null,0,0,0]
[{"$f":"INDEX(Ассортимент!$A:$D,ROW(),COLUMN())","v":0},{"$f":"INDEX(Ассортимент!$A:$D,ROW(),COLUMN())","v":0},{"$f":"INDEX(Ассортимент!$A:$D,ROW(),COLUMN())","v":0},{"$f":"INDEX(Ассортимент!$A:$D,ROW(),COLUMN())","v":0},null,0,null,0,null,0,null,0,null,0,null,0,null,0,null,0,null,0,null,0,null,0,null,0,null,0,0,0]
[{"$f":"INDEX(Ассортимент!$A:$D,ROW(),COLUMN())","v":0},{"$f":"INDEX(Ассортимент!$A:$D,ROW(),COLUMN())","v":0},{"$f":"INDEX(Ассортимент!$A:$D,ROW(),COLUMN())","v":0},{"$f":"INDEX(Ассортимент!$A:$D,ROW(),COLUMN())","v":0},null,0,null,0,null,0,null,0,null,0,null,0,null,0,null,0,null,0,null,0,null,0,null,0,null,0,0,0]
[{"$f":"INDEX(Ассортимент!$A:$D,ROW(),COLUMN())","v":0},{"$f":"INDEX(Ассортимент!$A:$D,ROW(),COLUMN())","v":0},{"$f":"INDEX(Ассортимент!$A:$D,ROW(),COLUMN())","v":0},{"$f":"INDEX(Ассортимент!$A:$D,ROW(),COLUMN())","v":0},null,0,null,0,null,0,null,0,null,0,null,0,null,0,null,0,null,0,null,0,null,0,null,0,null,0,0,0]
[{"$f":"INDEX(Ассортимент!$A:$D,ROW(),COLUMN())","v":0},{"$f":"INDEX(Ассортимент!$A:$D,ROW(),COLUMN())","v":0},{"$f":"INDEX(Ассортимент!$A:$D,ROW(),COLUMN())","v":0},{"$f":"INDEX(Ассортимент!$A:$D,ROW(),COLUMN())","v":0},null,0,null,0,null,0,null,0,null,0,null,0,null,0,null,0,null,0,null,0,null,0,null,0,null,0,0,0]
[{"$f":"INDEX(Ассортимент!$A:$D,ROW(),COLUMN())","v":0},{"$f":"INDEX(Ассортимент!$A:$D,ROW(),COLUMN())","v":0},{"$f":"INDEX(Ассортимент!$A:$D,ROW(),COLUMN())","v":0},{"$f":"INDEX(Ассортимент!$A:$D,ROW(),COLUMN())","v":0},null,0,null,0,null,0,null,0,null,0,null,0,null,0,null,0,null,0,null,0,null,0,null,0,null,0,0,0]
[{"$f":"INDEX(Ассортимент!$A:$D,ROW(),COLUMN())","v":0},{"$f":"INDEX(Ассортимент!$A:$D,ROW(),COLUMN())","v":0},{"$f":"INDEX(Ассортимент!$A:$D,ROW(),COLUMN())","v":0},{"$f":"INDEX(Ассортимент!$A:$D,ROW(),COLUMN())","v":0},null,0,null,0,null,0,null,0,null,0,null,0,null,0,null,0,null,0,null,0,null,0,null,0,null,0,0,0]
[{"$f":"INDEX(Ассортимент!$A:$D,ROW(),COLUMN())","v":0},{"$f":"INDEX(Ассортимент!$A:$D,ROW(),COLUMN())","v":0},{"$f":"INDEX(Ассортимент!$A:$D,ROW(),COLUMN())","v":0},{"$f":"INDEX(Ассортимент!$A:$D,ROW(),COLUMN())","v":0},null,0,null,0,null,0,null,0,null,0,null,0,null,0,null,0,null,0,null,0,null,0,null,0,null,0,0,0]
[{"$f":"INDEX(Ассортимент!$A:$D,ROW(),COLUMN())","v":0},{"$f":"INDEX(Ассортимент!$A:$D,ROW(),COLUMN())","v":0},{"$f":"INDEX(Ассортимент!$A:$D,ROW(),COLUMN())","v":0},{"$f":"INDEX(Ассортимент!$A:$D,ROW(),COLUMN())","v":0},null,0,null,0,null,0,null,0,null,0,null,0,null,0,null,0,null,0,null,0,null,0,null,0,null,0,0,0]
[{"$f":"INDEX(Ассортимент!$A:$D,ROW(),COLUMN())","v":0},{"$f":"INDEX(Ассортимент!$A:$D,ROW(),COLUMN())","v":0},{"$f":"INDEX(Ассортимент!$A:$D,ROW(),COLUMN())","v":0},{"$f":"INDEX(Ассортимент!$A:$D,ROW(),COLUMN())","v":0},null,0,null,{"$f":"IFERROR($G64*$D64,0)","v":0},null,{"$f":"IFERROR($I64*$D64,0)","v":0},null,{"$f":"IFERROR($K64*$D64,0)","v":0},null,0,null,{"$f":"IFERROR($O64*$D64,0)","v":0},null,{"$f":"IFERROR($Q64*$D64,0)","v":0},null,{"$f":"IFERROR($S64*$D64,0)","v":0},null,{"$f":"IFERROR($U64*$D64,0)","v":0},null,{"$f":"IFERROR($W64*$D64,0)","v":0},null,{"$f":"IFERROR($Y64*$D64,0)","v":0},null,{"$f":"IFERROR($AA64*$D64,0)","v":0},null,0,0,0]
[{"$f":"INDEX(Ассортимент!$A:$D,ROW(),COLUMN())","v":0},{"$f":"INDEX(Ассортимент!$A:$D,ROW(),COLUMN())","v":0},{"$f":"INDEX(Ассортимент!$A:$D,ROW(),COLUMN())","v":0},{"$f":"INDEX(Ассортимент!$A:$D,ROW(),COLUMN())","v":0},null,0,null,0,null,0,null,0,null,0,null,0,null,0,null,0,null,0,null,0,null,0,null,0,null,0,0,0]
[{"$f":"INDEX(Ассортимент!$A:$D,ROW(),COLUMN())","v":0},{"$f":"INDEX(Ассортимент!$A:$D,ROW(),COLUMN())","v":0},{"$f":"INDEX(Ассортимент!$A:$D,ROW(),COLUMN())","v":0},{"$f":"INDEX(Ассортимент!$A:$D,ROW(),COLUMN())","v":0},null,0,null,0,null,0,null,0,null,0,null,0,null,0,null,0,null,0,null,0,null,0,null,0,null,0,0,0]
[{"$f":"INDEX(Ассортимент!$A:$D,ROW(),COLUMN())","v":0},{"$f":"INDEX(Ассортимент!$A:$D,ROW(),COLUMN())","v":0},{"$f":"INDEX(Ассортимент!$A:$D,ROW(),COLUMN())","v":0},{"$f":"INDEX(Ассортимент!$A:$D,ROW(),COLUMN())","v":0},null,0,null,0,null,0,null,0,null,0,null,0,null,0,null,0,null,0,null,0,null,0,null,0,null,0,0,0]
[{"$f":"INDEX(Ассортимент!$A:$D,ROW(),COLUMN())","v":0},{"$f":"INDEX(Ассортимент!$A:$D,ROW(),COLUMN())","v":0},{"$f":"INDEX(Ассортимент!$A:$D,ROW(),COLUMN())","v":0},{"$f":"INDEX(Ассортимент!$A:$D,ROW(),COLUMN())","v":0},null,0,null,0,null,0,null,0,null,0,null,0,null,0,null,0,null,0,null,0,null,0,null,0,null,0,0,0]
[{"$f":"INDEX(Ассортимент!$A:$D,ROW(),COLUMN())","v":0},{"$f":"INDEX(Ассортимент!$A:$D,ROW(),COLUMN())","v":0},{"$f":"INDEX(Ассортимент!$A:$D,ROW(),COLUMN())","v":0},{"$f":"INDEX(Ассортимент!$A:$D,ROW(),COLUMN())","v":0},null,0,null,0,null,0,null,0,null,0,null,0,null,0,null,0,null,0,null,0,null,0,null,0,null,0,0,0]
[{"$f":"INDEX(Ассортимент!$A:$D,ROW(),COLUMN())","v":0},{"$f":"INDEX(Ассортимент!$A:$D,ROW(),COLUMN())","v":0},{"$f":"INDEX(Ассортимент!$A:$D,ROW(),COLUMN())","v":0},{"$f":"INDEX(Ассортимент!$A:$D,ROW(),COLUMN())","v":0},null,{"$f":"IFERROR($E70*$D70,0)","v":0},null,0,null,0,null,0,null,0,null,0,null,0,null,0,null,0,null,0,null,0,null,0,null,0,0,0]
[{"$f":"INDEX(Ассортимент!$A:$D,ROW(),COLUMN())","v":0},{"$f":"INDEX(Ассортимент!$A:$D,ROW(),COLUMN())","v":0},{"$f":"INDEX(Ассортимент!$A:$D,ROW(),COLUMN())","v":0},{"$f":"INDEX(Ассортимент!$A:$D,ROW(),COLUMN())","v":0},null,0,null,0,null,0,null,0,null,{"$f":"IFERROR($M71*$D71,0)","v":0},null,0,null,0,null,0,null,0,null,0,null,0,null,0,null,0,0,{"$f":"SUM(F71,H71,J71,L71,N71,P71,R71,T71,V71,X71,Z71,AB71)","v":0}]
[{"$f":"INDEX(Ассортимент!$A:$D,ROW(),COLUMN())","v":0},{"$f":"INDEX(Ассортимент!$A:$D,ROW(),COLUMN())","v":0},{"$f":"INDEX(Ассортимент!$A:$D,ROW(),COLUMN())","v":0},{"$f":"INDEX(Ассортимент!$A:$D,ROW(),COLUMN())","v":0},null,0,null,0,null,0,null,0,null,0,null,0,null,0,null,0,null,0,null,0,null,0,null,0,null,{"$f":"C72","v":0},{"$f":"SUM(E72,G72,I72,K72,M72,O72,Q72,S72,U72,W72,Y72,AA72)","v":0},0]
[{"$f":"INDEX(Ассортимент!$A:$D,ROW(),COLUMN())","v":0},{"$f":"INDEX(Ассортимент!$A:$D,ROW(),COLUMN())","v":0},{"$f":"INDEX(Ассортимент!$A:$D,ROW(),COLUMN())","v":0},{"$f":"INDEX(Ассортимент!$A:$D,ROW(),COLUMN())","v":0},null,0,null,0,null,0,null,0,null,0,null,0,null,0,null,0,null,0,null,0,null,0,null,0,null,0,0,0]
[{"$f":"INDEX(Ассортимент!$A:$D,ROW(),COLUMN())","v":0},{"$f":"INDEX(Ассортимент!$A:$D,ROW(),COLUMN())","v":0},{"$f":"INDEX(Ассортимент!$A:$D,ROW(),COLUMN())","v":0},{"$f":"INDEX(Ассортимент!$A:$D,ROW(),COLUMN())","v":0},null,0,null,0,null,0,null,0,null,0,null,0,null,0,null,0,null,0,null,0,null,0,null,0,null,0,0,0]
[{"$f":"INDEX(Ассортимент!$A:$D,ROW(),COLUMN())","v":0},{"$f":"INDEX(Ассортимент!$A:$D,ROW(),COLUMN())","v":0},{"$f":"INDEX(Ассортимент!$A:$D,ROW(),COLUMN())","v":0},{"$f":"INDEX(Ассортимент!$A:$D,ROW(),COLUMN())","v":0},null,0,null,0,null,0,null,0,null,0,null,0,null,0,null,0,null,0,null,0,null,0,null,0,null,0,0,0]
[{"$f":"INDEX(Ассортимент!$A:$D,ROW(),COLUMN())","v":0},{"$f":"INDEX(Ассортимент!$A:$D,ROW(),COLUMN())","v":0},{"$f":"INDEX(Ассортимент!$A:$D,ROW(),COLUMN())","v":0},{"$f":"INDEX(Ассортимент!$A:$D,ROW(),COLUMN())","v":0},null,0,null,0,null,0,null,0,null,0,null,0,null,0,null,0,null,0,null,0,null,0,null,0,null,0,0,0]
[{"$f":"INDEX(Ассортимент!$A:$D,ROW(),COLUMN())","v":0},{"$f":"INDEX(Ассортимент!$A:$D,ROW(),COLUMN())","v":0},{"$f":"INDEX(Ассортимент!$A:$D,ROW(),COLUMN())","v":0},{"$f":"INDEX(Ассортимент!$A:$D,ROW(),COLUMN())","v":0},null,0,null,0,null,0,null,0,null,0,null,0,null,0,null,0,null,0,null,0,null,0,null,0,null,0,0,0]
[{"$f":"INDEX(Ассортимент!$A:$D,ROW(),COLUMN())","v":0},{"$f":"INDEX(Ассортимент!$A:$D,ROW(),COLUMN())","v":0},{"$f":"INDEX(Ассортимент!$A:$D,ROW(),COLUMN())","v":0},{"$f":"INDEX(Ассортимент!$A:$D,ROW(),COLUMN())","v":0},null,0,null,0,null,0,null,0,null,0,null,0,null,0,null,0,null,0,null,0,null,0,null,0,null,0,0,0]
[{"$f":"INDEX(Ассортимент!$A:$D,ROW(),COLUMN())","v":0},{"$f":"INDEX(Ассортимент!$A:$D,ROW(),COLUMN())","v":0},{"$f":"INDEX(Ассортимент!$A:$D,ROW(),COLUMN())","v":0},{"$f":"INDEX(Ассортимент!$A:$D,ROW(),COLUMN())","v":0},null,0,null,0,null,0,null,0,null,0,null,0,null,0,null,0,null,0,null,0,null,0,null,0,null,0,0,0]
[{"$f":"INDEX(Ассортимент!$A:$D,ROW(),COLUMN())","v":0},{"$f":"INDEX(Ассортимент!$A:$D,ROW(),COLUMN())","v":0},{"$f":"INDEX(Ассортимент!$A:$D,ROW(),COLUMN())","v":0},{"$f":"INDEX(Ассортимент!$A:$D,ROW(),COLUMN())","v":0},null,0,null,0,null,0,null,0,null,0,null,0,null,0,null,0,null,0,null,0,null,0,null,0,null,0,0,0]
[{"$f":"INDEX(Ассортимент!$A:$D,ROW(),COLUMN())","v":0},{"$f":"INDEX(Ассортимент!$A:$D,ROW(),COLUMN())","v":0},{"$f":"INDEX(Ассортимент!$A:$D,ROW(),COLUMN())","v":0},{"$f":"INDEX(Ассортимент!$A:$D,ROW(),COLUMN())","v":0},null,0,null,0,null,0,null,0,null,0,null,0,null,0,null,0,null,0,null,0,null,0,null,0,null,0,0,0]
[{"$f":"INDEX(Ассортимент!$A:$D,ROW(),COLUMN())","v":0},{"$f":"INDEX(Ассортимент!$A:$D,ROW(),COLUMN())","v":0},{"$f":"INDEX(Ассортимент!$A:$D,ROW(),COLUMN())","v":0},{"$f":"INDEX(Ассортимент!$A:$D,ROW(),COLUMN())","v":0},null,0,null,0,null,0,null,0,null,0,null,0,null,0,null,0,null,0,null,0,null,0,null,0,null,0,0,0]
[{"$f":"INDEX(Ассортимент!$A:$D,ROW(),COLUMN())","v":0},{"$f":"INDEX(Ассортимент!$A:$D,ROW(),COLUMN())","v":0},{"$f":"INDEX(Ассортимент!$A:$D,ROW(),COLUMN())","v":0},{"$f":"INDEX(Ассортимент!$A:$D,ROW(),COLUMN())","v":0},null,0,null,0,null,0,null,0,null,0,null,0,null,0,null,0,null,0,null,0,null,0,null,0,null,0,0,0]
[{"$f":"INDEX(Ассортимент!$A:$D,ROW(),COLUMN())","v":0},{"$f":"INDEX(Ассортимент!$A:$D,ROW(),COLUMN())","v":0},{"$f":"INDEX(Ассортимент!$A:$D,ROW(),COLUMN())","v":0},{"$f":"INDEX(Ассортимент!$A:$D,ROW(),COLUMN())","v":0},null,0,null,0,null,0,null,0,null,0,null,0,null,0,null,0,null,0,null,0,null,0,null,0,null,0,0,0]
[{"$f":"INDEX(Ассортимент!$A:$D,ROW(),COLUMN())","v":0},{"$f":"INDEX(Ассортимент!$A:$D,ROW(),COLUMN())","v":0},{"$f":"INDEX(Ассортимент!$A:$D,ROW(),COLUMN())","v":0},{"$f":"INDEX(Ассортимент!$A:$D,ROW(),COLUMN())","v":0},null,0,null,0,null,0,null,0,null,0,null,0,null,0,null,0,null,0,null,0,null,0,null,0,null,0,0,0]
[{"$f":"INDEX(Ассортимент!$A:$D,ROW(),COLUMN())","v":0},{"$f":"INDEX(Ассортимент!$A:$D,ROW(),COLUMN())","v":0},{"$f":"INDEX(Ассортимент!$A:$D,ROW(),COLUMN())","v":0},{"$f":"INDEX(Ассортимент!$A:$D,ROW(),COLUMN())","v":0},null,0,null,0,null,0,null,0,null,0,null,0,null,0,null,0,null,0,null,0,null,0,null,0,null,0,0,0]
[{"$f":"INDEX(Ассортимент!$A:$D,ROW(),COLUMN())","v":0},{"$f":"INDEX(Ассортимент!$A:$D,ROW(),COLUMN())","v":0},{"$f":"INDEX(Ассортимент!$A:$D,ROW(),COLUMN())","v":0},{"$f":"INDEX(Ассортимент!$A:$D,ROW(),COLUMN())","v":0},null,0,null,0,null,0,null,0,null,0,null,0,null,0,null,0,null,0,null,0,null,0,null,0,null,0,0,0]
[{"$f":"INDEX(Ассортимент!$A:$D,ROW(),COLUMN())","v":0},{"$f":"INDEX(Ассортимент!$A:$D,ROW(),COLUMN())","v":0},{"$f":"INDEX(Ассортимент!$A:$D,ROW(),COLUMN())","v":0},{"$f":"INDEX(Ассортимент!$A:$D,ROW(),COLUMN())","v":0},null,0,null,0,null,0,null,0,null,0,null,0,null,0,null,0,null,0,null,0,null,0,null,0,null,0,0,0]
[{"$f":"INDEX(Ассортимент!$A:$D,ROW(),COLUMN())","v":0},{"$f":"INDEX(Ассортимент!$A:$D,ROW(),COLUMN())","v":0},{"$f":"INDEX(Ассортимент!$A:$D,ROW(),COLUMN())","v":0},{"$f":"INDEX(Ассортимент!$A:$D,ROW(),COLUMN())","v":0},null,0,null,0,null,0,null,0,null,0,null,0,null,0,null,0,null,0,null,0,null,0,null,0,null,0,0,0]
[{"$f":"INDEX(Ассортимент!$A:$D,ROW(),COLUMN())","v":0},{"$f":"INDEX(Ассортимент!$A:$D,ROW(),COLUMN())","v":0},{"$f":"INDEX(Ассортимент!$A:$D,ROW(),COLUMN())","v":0},{"$f":"INDEX(Ассортимент!$A:$D,ROW(),COLUMN())","v":0},null,0,null,0,null,0,null,0,null,0,null,0,null,0,null,0,null,0,null,0,null,0,null,0,null,0,0,0]
[{"$f":"INDEX(Ассортимент!$A:$D,ROW(),COLUMN())","v":0},{"$f":"INDEX(Ассортимент!$A:$D,ROW(),COLUMN())","v":0},{"$f":"INDEX(Ассортимент!$A:$D,ROW(),COLUMN())","v":0},{"$f":"INDEX(Ассортимент!$A:$D,ROW(),COLUMN())","v":0},null,0,null,0,null,0,null,0,null,0,null,0,null,0,null,0,null,0,null,0,null,0,null,0,null,0,0,0]
[{"$f":"INDEX(Ассортимент!$A:$D,ROW(),COLUMN())","v":0},{"$f":"INDEX(Ассортимент!$A:$D,ROW(),COLUMN())","v":0},{"$f":"INDEX(Ассортимент!$A:$D,ROW(),COLUMN())","v":0},{"$f":"INDEX(Ассортимент!$A:$D,ROW(),COLUMN())","v":0},null,0,null,0,null,0,null,0,null,0,null,0,null,0,null,0,null,0,null,0,null,0,null,0,null,0,0,0]
[{"$f":"INDEX(Ассортимент!$A:$D,ROW(),COLUMN())","v":0},{"$f":"INDEX(Ассортимент!$A:$D,ROW(),COLUMN())","v":0},{"$f":"INDEX(Ассортимент!$A:$D,ROW(),COLUMN())","v":0},{"$f":"INDEX(Ассортимент!$A:$D,ROW(),COLUMN())","v":0},null,0,null,0,null,0,null,0,null,0,null,0,null,0,null,0,null,0,null,0,null,0,null,0,null,0,0,0]
[{"$f":"INDEX(Ассортимент!$A:$D,ROW(),COLUMN())","v":0},{"$f":"INDEX(Ассортимент!$A:$D,ROW(),COLUMN())","v":0},{"$f":"INDEX(Ассортимент!$A:$D,ROW(),COLUMN())","v":0},{"$f":"INDEX(Ассортимент!$A:$D,ROW(),COLUMN())","v":0},null,0,null,0,null,0,null,0,null,0,null,0,null,0,null,0,null,0,null,0,null,0,null,0,null,0,0,0]
[{"$f":"INDEX(Ассортимент!$A:$D,ROW(),COLUMN())","v":0},{"$f":"INDEX(Ассортимент!$A:$D,ROW(),COLUMN())","v":0},{"$f":"INDEX(Ассортимент!$A:$D,ROW(),COLUMN())","v":0},{"$f":"INDEX(Ассортимент!$A:$D,ROW(),COLUMN())","v":0},null,0,null,0,null,0,null,0,null,0,null,0,null,0,null,0,null,0,null,0,null,0,null,0,null,0,0,0]
[{"$f":"INDEX(Ассортимент!$A:$D,ROW(),COLUMN())","v":0},{"$f":"INDEX(Ассортимент!$A:$D,ROW(),COLUMN())","v":0},{"$f":"INDEX(Ассортимент!$A:$D,ROW(),COLUMN())","v":0},{"$f":"INDEX(Ассортимент!$A:$D,ROW(),COLUMN())","v":0},null,0,null,0,null,0,null,0,null,0,null,0,null,0,null,0,null,0,null,0,null,0,null,0,null,0,0,0]
[{"$f":"INDEX(Ассортимент!$A:$D,ROW(),COLUMN())","v":0},{"$f":"INDEX(Ассортимент!$A:$D,ROW(),COLUMN())","v":0},{"$f":"INDEX(Ассортимент!$A:$D,ROW(),COLUMN())","v":0},{"$f":"INDEX(Ассортимент!$A:$D,ROW(),COLUMN())","v":0},null,0,null,0,null,0,null,0,null,0,null,0,null,0,null,0,null,0,null,0,null,0,null,0,null,0,0,0]
[{"$f":"INDEX(Ассортимент!$A:$D,ROW(),COLUMN())","v":0},{"$f":"INDEX(Ассортимент!$A:$D,ROW(),COLUMN())","v":0},{"$f":"INDEX(Ассортимент!$A:$D,ROW(),COLUMN())","v":0},{"$f":"INDEX(Ассортимент!$A:$D,ROW(),COLUMN())","v":0},null,0,null,0,null,0,null,0,null,0,null,0,null,0,null,0,null,0,null,0,null,0,null,0,null,0,0,0]
[{"$f":"INDEX(Ассортимент!$A:$D,ROW(),COLUMN())","v":0},{"$f":"INDEX(Ассортимент!$A:$D,ROW(),COLUMN())","v":0},{"$f":"INDEX(Ассортимент!$A:$D,ROW(),COLUMN())","v":0},{"$f":"INDEX(Ассортимент!$A:$D,ROW(),COLUMN())","v":0},null,0,null,0,null,0,null,0,null,0,null,0,null,0,null,0,null,0,null,0,null,0,null,0,null,0,0,0]
[{"$f":"INDEX(Ассортимент!$A:$D,ROW(),COLUMN())","v":0},{"$f":"INDEX(Ассортимент!$A:$D,ROW(),COLUMN())","v":0},{"$f":"INDEX(Ассортимент!$A:$D,ROW(),COLUMN())","v":0},{"$f":"INDEX(Ассортимент!$A:$D,ROW(),COLUMN())","v":0},null,0,null,0,null,0,null,0,null,0,null,0,null,0,null,0,null,0,null,0,null,0,null,{"$f":"IFERROR($AA100*$D100,0)","v":0},null,0,0,0]
[{"$f":"INDEX(Ассортимент!$A:$D,ROW(),COLUMN())","v":0},{"$f":"INDEX(Ассортимент!$A:$D,ROW(),COLUMN())","v":0},{"$f":"INDEX(Ассортимент!$A:$D,ROW(),COLUMN())","v":0},{"$f":"INDEX(Ассортимент!$A:$D,ROW(),COLUMN())","v":0},null,0,null,0,null,0,null,0,null,0,null,0,null,0,null,0,null,0,null,0,null,0,null,0,null,0,0,0]
[{"$f":"INDEX(Ассортимент!$A:$D,ROW(),COLUMN())","v":0},{"$f":"INDEX(Ассортимент!$A:$D,ROW(),COLUMN())","v":0},{"$f":"INDEX(Ассортимент!$A:$D,ROW(),COLUMN())","v":0},{"$f":"INDEX(Ассортимент!$A:$D,ROW(),COLUMN())","v":0},null,0,null,0,null,0,null,0,null,0,null,0,null,0,null,0,null,0,null,0,null,0,null,0,null,0,0,0]
[{"$f":"INDEX(Ассортимент!$A:$D,ROW(),COLUMN())","v":0},{"$f":"INDEX(Ассортимент!$A:$D,ROW(),COLUMN())","v":0},{"$f":"INDEX(Ассортимент!$A:$D,ROW(),COLUMN())","v":0},{"$f":"INDEX(Ассортимент!$A:$D,ROW(),COLUMN())","v":0},null,0,null,0,null,0,null,0,null,0,null,0,null,0,null,0,null,0,null,0,null,0,null,0,null,0,0,0]
[{"$f":"INDEX(Ассортимент!$A:$D,ROW(),COLUMN())","v":0},{"$f":"INDEX(Ассортимент!$A:$D,ROW(),COLUMN())","v":0},{"$f":"INDEX(Ассортимент!$A:$D,ROW(),COLUMN())","v":0},{"$f":"INDEX(Ассортимент!$A:$D,ROW(),COLUMN())","v":0},null,0,null,0,null,0,null,0,null,0,null,0,null,0,null,0,null,0,null,0,null,0,null,0,null,0,0,0]
[{"$f":"INDEX(Ассортимент!$A:$D,ROW(),COLUMN())","v":0},{"$f":"INDEX(Ассортимент!$A:$D,ROW(),COLUMN())","v":0},{"$f":"INDEX(Ассортимент!$A:$D,ROW(),COLUMN())","v":0},{"$f":"INDEX(Ассортимент!$A:$D,ROW(),COLUMN())","v":0},null,0,null,0,null,0,null,0,null,0,null,0,null,0,null,0,null,0,null,0,null,0,null,0,null,0,0,0]
[{"$f":"INDEX(Ассортимент!$A:$D,ROW(),COLUMN())","v":0},{"$f":"INDEX(Ассортимент!$A:$D,ROW(),COLUMN())","v":0},{"$f":"INDEX(Ассортимент!$A:$D,ROW(),COLUMN())","v":0},{"$f":"INDEX(Ассортимент!$A:$D,ROW(),COLUMN())","v":0},null,0,null,0,null,0,null,0,null,0,null,0,null,0,null,0,null,0,null,0,null,0,null,0,null,0,0,0]
[{"$f":"INDEX(Ассортимент!$A:$D,ROW(),COLUMN())","v":0},{"$f":"INDEX(Ассортимент!$A:$D,ROW(),COLUMN())","v":0},{"$f":"INDEX(Ассортимент!$A:$D,ROW(),COLUMN())","v":0},{"$f":"INDEX(Ассортимент!$A:$D,ROW(),COLUMN())","v":0},null,0,null,0,null,0,null,0,null,0,null,0,null,0,null,0,null,0,null,0,null,0,null,0,null,0,0,0]
[{"$f":"INDEX(Ассортимент!$A:$D,ROW(),COLUMN())","v":0},{"$f":"INDEX(Ассортимент!$A:$D,ROW(),COLUMN())","v":0},{"$f":"INDEX(Ассортимент!$A:$D,ROW(),COLUMN())","v":0},{"$f":"INDEX(Ассортимент!$A:$D,ROW(),COLUMN())","v":0},null,0,null,0,null,0,null,0,null,0,null,0,null,0,null,0,null,0,null,0,null,0,null,0,null,0,0,0]
[{"$f":"INDEX(Ассортимент!$A:$D,ROW(),COLUMN())","v":0},{"$f":"INDEX(Ассортимент!$A:$D,ROW(),COLUMN())","v":0},{"$f":"INDEX(Ассортимент!$A:$D,ROW(),COLUMN())","v":0},{"$f":"INDEX(Ассортимент!$A:$D,ROW(),COLUMN())","v":0},null,0,null,0,null,0,null,0,null,0,null,0,null,0,null,0,null,0,null,0,null,0,null,0,null,0,0,0]
[{"$f":"INDEX(Ассортимент!$A:$D,ROW(),COLUMN())","v":0},{"$f":"INDEX(Ассортимент!$A:$D,ROW(),COLUMN())","v":0},{"$f":"INDEX(Ассортимент!$A:$D,ROW(),COLUMN())","v":0},{"$f":"INDEX(Ассортимент!$A:$D,ROW(),COLUMN())","v":0},null,0,null,0,null,0,null,0,null,0,null,0,null,0,null,0,null,0,null,0,null,0,null,0,null,0,0,0]

{"sheet":"Отчет_Бух","index":3,"n_rows":10,"n_cols":6,"rows_kept":10,"cut":false,"hidden":false,"merged":[[3,1,5,1],[6,1,7,1],[8,1,9,1],[3,2,5,2],[6,2,7,2],[8,2,9,2]]}
[]
[]
[null,"Ресторан","Юр. Лицо","Позиция","Цена продажи","Вес"]
[null,"Ромашка","ООО \"Ромашка\"","Голень куриная",155,20]
[null,null,null,"крылья куриные",135,40]
[null,null,null,"Печень куриная",129,60]
[null,"Роза","ООО \"Роза\"","кура тушка калибр 1,0",135,100]
[null,null,null,"кура шаурма",210,20]
[null,"Тюльпан","ООО \"Тюльпан\"","куриное филе с бедра ",230,30]
[null,null,null,"говядина вырезка белоруссия",695,20]

{"sheet":"Архив","index":4,"n_rows":111,"n_cols":4,"rows_kept":111,"cut":false,"hidden":false,"merged":[]}
[]
[]
[]
[{"$f":"INDEX(Ассортимент!$A:$D,ROW(),COLUMN())","v":"Категория"},{"$f":"INDEX(Ассортимент!$A:$D,ROW(),COLUMN())","v":"Ассортимент"},{"$f":"INDEX(Ассортимент!$A:$D,ROW(),COLUMN())","v":"Цена покупки"},{"$f":"INDEX(Ассортимент!$A:$D,ROW(),COLUMN())","v":"Цена продажи"}]
[{"$f":"INDEX(Ассортимент!$A:$D,ROW(),COLUMN())","v":0},{"$f":"INDEX(Ассортимент!$A:$D,ROW(),COLUMN())","v":0},{"$f":"INDEX(Ассортимент!$A:$D,ROW(),COLUMN())","v":0},{"$f":"INDEX(Ассортимент!$A:$D,ROW(),COLUMN())","v":0}]
[{"$f":"INDEX(Ассортимент!$A:$D,ROW(),COLUMN())","v":0},{"$f":"INDEX(Ассортимент!$A:$D,ROW(),COLUMN())","v":0},{"$f":"INDEX(Ассортимент!$A:$D,ROW(),COLUMN())","v":0},{"$f":"INDEX(Ассортимент!$A:$D,ROW(),COLUMN())","v":0}]
[{"$f":"INDEX(Ассортимент!$A:$D,ROW(),COLUMN())","v":"1.птица"},{"$f":"INDEX(Ассортимент!$A:$D,ROW(),COLUMN())","v":"Голень куриная"},{"$f":"INDEX(Ассортимент!$A:$D,ROW(),COLUMN())","v":120},{"$f":"INDEX(Ассортимент!$A:$D,ROW(),COLUMN())","v":155}]
[{"$f":"INDEX(Ассортимент!$A:$D,ROW(),COLUMN())","v":"1.птица"},{"$f":"INDEX(Ассортимент!$A:$D,ROW(),COLUMN())","v":"крылья куриные"},{"$f":"INDEX(Ассортимент!$A:$D,ROW(),COLUMN())","v":102},{"$f":"INDEX(Ассортимент!$A:$D,ROW(),COLUMN())","v":135}]
[{"$f":"INDEX(Ассортимент!$A:$D,ROW(),COLUMN())","v":"1.птица"},{"$f":"INDEX(Ассортимент!$A:$D,ROW(),COLUMN())","v":"кура тушка калибр 1,0"},{"$f":"INDEX(Ассортимент!$A:$D,ROW(),COLUMN())","v":105},{"$f":"INDEX(Ассортимент!$A:$D,ROW(),COLUMN())","v":135}]
[{"$f":"INDEX(Ассортимент!$A:$D,ROW(),COLUMN())","v":"1.птица"},{"$f":"INDEX(Ассортимент!$A:$D,ROW(),COLUMN())","v":"кура тушка калибр 1,1"},{"$f":"INDEX(Ассортимент!$A:$D,ROW(),COLUMN())","v":110},{"$f":"INDEX(Ассортимент!$A:$D,ROW(),COLUMN())","v":140}]
[{"$f":"INDEX(Ассортимент!$A:$D,ROW(),COLUMN())","v":"1.птица"},{"$f":"INDEX(Ассортимент!$A:$D,ROW(),COLUMN())","v":"кура тушка калибр 1,3"},{"$f":"INDEX(Ассортимент!$A:$D,ROW(),COLUMN())","v":105},{"$f":"INDEX(Ассортимент!$A:$D,ROW(),COLUMN())","v":130}]
[{"$f":"INDEX(Ассортимент!$A:$D,ROW(),COLUMN())","v":"1.птица"},{"$f":"INDEX(Ассортимент!$A:$D,ROW(),COLUMN())","v":"кура шаурма"},{"$f":"INDEX(Ассортимент!$A:$D,ROW(),COLUMN())","v":185},{"$f":"INDEX(Ассортимент!$A:$D,ROW(),COLUMN())","v":210}]
[{"$f":"INDEX(Ассортимент!$A:$D,ROW(),COLUMN())","v":"1.птица"},{"$f":"INDEX(Ассортимент!$A:$D,ROW(),COLUMN())","v":"куриная грудка филе"},{"$f":"INDEX(Ассортимент!$A:$D,ROW(),COLUMN())","v":173},{"$f":"INDEX(Ассортимент!$A:$D,ROW(),COLUMN())","v":193}]
[{"$f":"INDEX(Ассортимент!$A:$D,ROW(),COLUMN())","v":"1.птица"},{"$f":"INDEX(Ассортимент!$A:$D,ROW(),COLUMN())","v":"куриное филе с бедра "},{"$f":"INDEX(Ассортимент!$A:$D,ROW(),COLUMN())","v":203},{"$f":"INDEX(Ассортимент!$A:$D,ROW(),COLUMN())","v":230}]
[{"$f":"INDEX(Ассортимент!$A:$D,ROW(),COLUMN())","v":"1.птица"},{"$f":"INDEX(Ассортимент!$A:$D,ROW(),COLUMN())","v":"Печень куриная"},{"$f":"INDEX(Ассортимент!$A:$D,ROW(),COLUMN())","v":129},{"$f":"INDEX(Ассортимент!$A:$D,ROW(),COLUMN())","v":159}]
[{"$f":"INDEX(Ассортимент!$A:$D,ROW(),COLUMN())","v":"1.птица"},{"$f":"INDEX(Ассортимент!$A:$D,ROW(),COLUMN())","v":"суповой набор кура"},{"$f":"INDEX(Ассортимент!$A:$D,ROW(),COLUMN())","v":40},{"$f":"INDEX(Ассортимент!$A:$D,ROW(),COLUMN())","v":70}]
[{"$f":"INDEX(Ассортимент!$A:$D,ROW(),COLUMN())","v":"1.птица"},{"$f":"INDEX(Ассортимент!$A:$D,ROW(),COLUMN())","v":"филе индейки"},{"$f":"INDEX(Ассортимент!$A:$D,ROW(),COLUMN())","v":250},{"$f":"INDEX(Ассортимент!$A:$D,ROW(),COLUMN())","v":295}]
[{"$f":"INDEX(Ассортимент!$A:$D,ROW(),COLUMN())","v":"2.говядина"},{"$f":"INDEX(Ассортимент!$A:$D,ROW(),COLUMN())","v":"Глазной мускул"},{"$f":"INDEX(Ассортимент!$A:$D,ROW(),COLUMN())","v":400},{"$f":"INDEX(Ассортимент!$A:$D,ROW(),COLUMN())","v":440}]
[{"$f":"INDEX(Ассортимент!$A:$D,ROW(),COLUMN())","v":"2.говядина"},{"$f":"INDEX(Ассортимент!$A:$D,ROW(),COLUMN())","v":"говядина вырезка белоруссия"},{"$f":"INDEX(Ассортимент!$A:$D,ROW(),COLUMN())","v":640},{"$f":"INDEX(Ассортимент!$A:$D,ROW(),COLUMN())","v":695}]
[{"$f":"INDEX(Ассортимент!$A:$D,ROW(),COLUMN())","v":"2.говядина"},{"$f":"INDEX(Ассортимент!$A:$D,ROW(),COLUMN())","v":"говядина вырезка бразилия"},{"$f":"INDEX(Ассортимент!$A:$D,ROW(),COLUMN())","v":700},{"$f":"INDEX(Ассортимент!$A:$D,ROW(),COLUMN())","v":760}]
[{"$f":"INDEX(Ассортимент!$A:$D,ROW(),COLUMN())","v":"2.говядина"},{"$f":"INDEX(Ассортимент!$A:$D,ROW(),COLUMN())","v":"говядина вырезка парагвай"},{"$f":"INDEX(Ассортимент!$A:$D,ROW(),COLUMN())","v":720},{"$f":"INDEX(Ассортимент!$A:$D,ROW(),COLUMN())","v":770}]
[{"$f":"INDEX(Ассортимент!$A:$D,ROW(),COLUMN())","v":"2.говядина"},{"$f":"INDEX(Ассортимент!$A:$D,ROW(),COLUMN())","v":"Говядина кнакл"},{"$f":"INDEX(Ассортимент!$A:$D,ROW(),COLUMN())","v":380},{"$f":"INDEX(Ассортимент!$A:$D,ROW(),COLUMN())","v":455}]
[{"$f":"INDEX(Ассортимент!$A:$D,ROW(),COLUMN())","v":"2.говядина"},{"$f":"INDEX(Ассортимент!$A:$D,ROW(),COLUMN())","v":"говядина лопатка"},{"$f":"INDEX(Ассортимент!$A:$D,ROW(),COLUMN())","v":312},{"$f":"INDEX(Ассортимент!$A:$D,ROW(),COLUMN())","v":352}]
[{"$f":"INDEX(Ассортимент!$A:$D,ROW(),COLUMN())","v":"2.говядина"},{"$f":"INDEX(Ассортимент!$A:$D,ROW(),COLUMN())","v":"Печень говяжья"},{"$f":"INDEX(Ассортимент!$A:$D,ROW(),COLUMN())","v":154},{"$f":"INDEX(Ассортимент!$A:$D,ROW(),COLUMN())","v":178}]
[{"$f":"INDEX(Ассортимент!$A:$D,ROW(),COLUMN())","v":"2.говядина"},{"$f":"INDEX(Ассортимент!$A:$D,ROW(),COLUMN())","v":"Язык Говяжий"},{"$f":"INDEX(Ассортимент!$A:$D,ROW(),COLUMN())","v":425},{"$f":"INDEX(Ассортимент!$A:$D,ROW(),COLUMN())","v":465}]
[{"$f":"INDEX(Ассортимент!$A:$D,ROW(),COLUMN())","v":"3.свинина"},{"$f":"INDEX(Ассортимент!$A:$D,ROW(),COLUMN())","v":"ребра свиные"},{"$f":"INDEX(Ассортимент!$A:$D,ROW(),COLUMN())","v":245},{"$f":"INDEX(Ассортимент!$A:$D,ROW(),COLUMN())","v":285}]
[{"$f":"INDEX(Ассортимент!$A:$D,ROW(),COLUMN())","v":"3.свинина"},{"$f":"INDEX(Ассортимент!$A:$D,ROW(),COLUMN())","v":"свинина вырезка филе"},{"$f":"INDEX(Ассортимент!$A:$D,ROW(),COLUMN())","v":310},{"$f":"INDEX(Ассортимент!$A:$D,ROW(),COLUMN())","v":340}]
[{"$f":"INDEX(Ассортимент!$A:$D,ROW(),COLUMN())","v":"3.свинина"},{"$f":"INDEX(Ассортимент!$A:$D,ROW(),COLUMN())","v":"свинина корейка"},{"$f":"INDEX(Ассортимент!$A:$D,ROW(),COLUMN())","v":265},{"$f":"INDEX(Ассортимент!$A:$D,ROW(),COLUMN())","v":320}]
[{"$f":"INDEX(Ассортимент!$A:$D,ROW(),COLUMN())","v":"3.свинина"},{"$f":"INDEX(Ассортимент!$A:$D,ROW(),COLUMN())","v":"свинина корейка на кости"},{"$f":"INDEX(Ассортимент!$A:$D,ROW(),COLUMN())","v":200},{"$f":"INDEX(Ассортимент!$A:$D,ROW(),COLUMN())","v":230}]
[{"$f":"INDEX(Ассортимент!$A:$D,ROW(),COLUMN())","v":"3.свинина"},{"$f":"INDEX(Ассортимент!$A:$D,ROW(),COLUMN())","v":"свинина лопатка"},{"$f":"INDEX(Ассортимент!$A:$D,ROW(),COLUMN())","v":230},{"$f":"INDEX(Ассортимент!$A:$D,ROW(),COLUMN())","v":270}]
[{"$f":"INDEX(Ассортимент!$A:$D,ROW(),COLUMN())","v":"3.свинина"},{"$f":"INDEX(Ассортимент!$A:$D,ROW(),COLUMN())","v":"свинина окорок"},{"$f":"INDEX(Ассортимент!$A:$D,ROW(),COLUMN())","v":230},{"$f":"INDEX(Ассортимент!$A:$D,ROW(),COLUMN())","v":270}]
[{"$f":"INDEX(Ассортимент!$A:$D,ROW(),COLUMN())","v":"3.свинина"},{"$f":"INDEX(Ассортимент!$A:$D,ROW(),COLUMN())","v":"свинина окорок на кости"},{"$f":"INDEX(Ассортимент!$A:$D,ROW(),COLUMN())","v":210},{"$f":"INDEX(Ассортимент!$A:$D,ROW(),COLUMN())","v":240}]
[{"$f":"INDEX(Ассортимент!$A:$D,ROW(),COLUMN())","v":"3.свинина"},{"$f":"INDEX(Ассортимент!$A:$D,ROW(),COLUMN())","v":"свинина шея"},{"$f":"INDEX(Ассортимент!$A:$D,ROW(),COLUMN())","v":270},{"$f":"INDEX(Ассортимент!$A:$D,ROW(),COLUMN())","v":300}]
[{"$f":"INDEX(Ассортимент!$A:$D,ROW(),COLUMN())","v":"4.рыба"},{"$f":"INDEX(Ассортимент!$A:$D,ROW(),COLUMN())","v":"креветки 21/25"},{"$f":"INDEX(Ассортимент!$A:$D,ROW(),COLUMN())","v":660},{"$f":"INDEX(Ассортимент!$A:$D,ROW(),COLUMN())","v":700}]
[{"$f":"INDEX(Ассортимент!$A:$D,ROW(),COLUMN())","v":"4.рыба"},{"$f":"INDEX(Ассортимент!$A:$D,ROW(),COLUMN())","v":"креветки тигровые 16/20"},{"$f":"INDEX(Ассортимент!$A:$D,ROW(),COLUMN())","v":978},{"$f":"INDEX(Ассортимент!$A:$D,ROW(),COLUMN())","v":1048}]
[{"$f":"INDEX(Ассортимент!$A:$D,ROW(),COLUMN())","v":"4.рыба"},{"$f":"INDEX(Ассортимент!$A:$D,ROW(),COLUMN())","v":"минтай тушка"},{"$f":"INDEX(Ассортимент!$A:$D,ROW(),COLUMN())","v":120},{"$f":"INDEX(Ассортимент!$A:$D,ROW(),COLUMN())","v":158}]
[{"$f":"INDEX(Ассортимент!$A:$D,ROW(),COLUMN())","v":"4.рыба"},{"$f":"INDEX(Ассортимент!$A:$D,ROW(),COLUMN())","v":"морской коктель"},{"$f":"INDEX(Ассортимент!$A:$D,ROW(),COLUMN())","v":0},{"$f":"INDEX(Ассортимент!$A:$D,ROW(),COLUMN())","v":280}]
[{"$f":"INDEX(Ассортимент!$A:$D,ROW(),COLUMN())","v":"4.рыба"},{"$f":"INDEX(Ассортимент!$A:$D,ROW(),COLUMN())","v":"треска филе на коже"},{"$f":"INDEX(Ассортимент!$A:$D,ROW(),COLUMN())","v":275},{"$f":"INDEX(Ассортимент!$A:$D,ROW(),COLUMN())","v":310}]
[{"$f":"INDEX(Ассортимент!$A:$D,ROW(),COLUMN())","v":"4.рыба"},{"$f":"INDEX(Ассортимент!$A:$D,ROW(),COLUMN())","v":"Филе минтая"},{"$f":"INDEX(Ассортимент!$A:$D,ROW(),COLUMN())","v":120},{"$f":"INDEX(Ассортимент!$A:$D,ROW(),COLUMN())","v":157}]
[{"$f":"INDEX(Ассортимент!$A:$D,ROW(),COLUMN())","v":"4.рыба"},{"$f":"INDEX(Ассортимент!$A:$D,ROW(),COLUMN())","v":"филе пангасиуса"},{"$f":"INDEX(Ассортимент!$A:$D,ROW(),COLUMN())","v":148},{"$f":"INDEX(Ассортимент!$A:$D,ROW(),COLUMN())","v":180}]
[{"$f":"INDEX(Ассортимент!$A:$D,ROW(),COLUMN())","v":"4.рыба"},{"$f":"INDEX(Ассортимент!$A:$D,ROW(),COLUMN())","v":"филе судака"},{"$f":"INDEX(Ассортимент!$A:$D,ROW(),COLUMN())","v":315},{"$f":"INDEX(Ассортимент!$A:$D,ROW(),COLUMN())","v":348}]
[{"$f":"INDEX(Ассортимент!$A:$D,ROW(),COLUMN())","v":"4.рыба"},{"$f":"INDEX(Ассортимент!$A:$D,ROW(),COLUMN())","v":"филе тилапии"},{"$f":"INDEX(Ассортимент!$A:$D,ROW(),COLUMN())","v":200},{"$f":"INDEX(Ассортимент!$A:$D,ROW(),COLUMN())","v":230}]
[{"$f":"INDEX(Ассортимент!$A:$D,ROW(),COLUMN())","v":"4.рыба"},{"$f":"INDEX(Ассортимент!$A:$D,ROW(),COLUMN())","v":"филе трески"},{"$f":"INDEX(Ассортимент!$A:$D,ROW(),COLUMN())","v":280},{"$f":"INDEX(Ассортимент!$A:$D,ROW(),COLUMN())","v":310}]
[{"$f":"INDEX(Ассортимент!$A:$D,ROW(),COLUMN())","v":"5.баранина"},{"$f":"INDEX(Ассортимент!$A:$D,ROW(),COLUMN())","v":"Нога Баранья б/к"},{"$f":"INDEX(Ассортимент!$A:$D,ROW(),COLUMN())","v":400},{"$f":"INDEX(Ассортимент!$A:$D,ROW(),COLUMN())","v":440}]
[{"$f":"INDEX(Ассортимент!$A:$D,ROW(),COLUMN())","v":"6.яйцо"},{"$f":"INDEX(Ассортимент!$A:$D,ROW(),COLUMN())","v":"яйцо отборное"},{"$f":"INDEX(Ассортимент!$A:$D,ROW(),COLUMN())","v":5.2},{"$f":"INDEX(Ассортимент!$A:$D,ROW(),COLUMN())","v":5.8}]
[{"$f":"INDEX(Ассортимент!$A:$D,ROW(),COLUMN())","v":"6.яйцо"},{"$f":"INDEX(Ассортимент!$A:$D,ROW(),COLUMN())","v":"яйцо первый сорт"},{"$f":"INDEX(Ассортимент!$A:$D,ROW(),COLUMN())","v":4.8},{"$f":"INDEX(Ассортимент!$A:$D,ROW(),COLUMN())","v":5.5}]
[{"$f":"INDEX(Ассортимент!$A:$D,ROW(),COLUMN())","v":"7.прочее"},{"$f":"INDEX(Ассортимент!$A:$D,ROW(),COLUMN())","v":"мука предпортовая упаковка 2 кг"},{"$f":"INDEX(Ассортимент!$A:$D,ROW(),COLUMN())","v":58.3},{"$f":"INDEX(Ассортимент!$A:$D,ROW(),COLUMN())","v":64.3}]
[{"$f":"INDEX(Ассортимент!$A:$D,ROW(),COLUMN())","v":0},{"$f":"INDEX(Ассортимент!$A:$D,ROW(),COLUMN())","v":0},{"$f":"INDEX(Ассортимент!$A:$D,ROW(),COLUMN())","v":0},{"$f":"INDEX(Ассортимент!$A:$D,ROW(),COLUMN())","v":0}]
[{"$f":"INDEX(Ассортимент!$A:$D,ROW(),COLUMN())","v":0},{"$f":"INDEX(Ассортимент!$A:$D,ROW(),COLUMN())","v":0},{"$f":"INDEX(Ассортимент!$A:$D,ROW(),COLUMN())","v":0},{"$f":"INDEX(Ассортимент!$A:$D,ROW(),COLUMN())","v":0}]
[{"$f":"INDEX(Ассортимент!$A:$D,ROW(),COLUMN())","v":0},{"$f":"INDEX(Ассортимент!$A:$D,ROW(),COLUMN())","v":0},{"$f":"INDEX(Ассортимент!$A:$D,ROW(),COLUMN())","v":0},{"$f":"INDEX(Ассортимент!$A:$D,ROW(),COLUMN())","v":0}]
[{"$f":"INDEX(Ассортимент!$A:$D,ROW(),COLUMN())","v":0},{"$f":"INDEX(Ассортимент!$A:$D,ROW(),COLUMN())","v":0},{"$f":"INDEX(Ассортимент!$A:$D,ROW(),COLUMN())","v":0},{"$f":"INDEX(Ассортимент!$A:$D,ROW(),COLUMN())","v":0}]
[{"$f":"INDEX(Ассортимент!$A:$D,ROW(),COLUMN())","v":0},{"$f":"INDEX(Ассортимент!$A:$D,ROW(),COLUMN())","v":0},{"$f":"INDEX(Ассортимент!$A:$D,ROW(),COLUMN())","v":0},{"$f":"INDEX(Ассортимент!$A:$D,ROW(),COLUMN())","v":0}]
[{"$f":"INDEX(Ассортимент!$A:$D,ROW(),COLUMN())","v":0},{"$f":"INDEX(Ассортимент!$A:$D,ROW(),COLUMN())","v":0},{"$f":"INDEX(Ассортимент!$A:$D,ROW(),COLUMN())","v":0},{"$f":"INDEX(Ассортимент!$A:$D,ROW(),COLUMN())","v":0}]
[{"$f":"INDEX(Ассортимент!$A:$D,ROW(),COLUMN())","v":0},{"$f":"INDEX(Ассортимент!$A:$D,ROW(),COLUMN())","v":0},{"$f":"INDEX(Ассортимент!$A:$D,ROW(),COLUMN())","v":0},{"$f":"INDEX(Ассортимент!$A:$D,ROW(),COLUMN())","v":0}]
[{"$f":"INDEX(Ассортимент!$A:$D,ROW(),COLUMN())","v":0},{"$f":"INDEX(Ассортимент!$A:$D,ROW(),COLUMN())","v":0},{"$f":"INDEX(Ассортимент!$A:$D,ROW(),COLUMN())","v":0},{"$f":"INDEX(Ассортимент!$A:$D,ROW(),COLUMN())","v":0}]
[{"$f":"INDEX(Ассортимент!$A:$D,ROW(),COLUMN())","v":0},{"$f":"INDEX(Ассортимент!$A:$D,ROW(),COLUMN())","v":0},{"$f":"INDEX(Ассортимент!$A:$D,ROW(),COLUMN())","v":0},{"$f":"INDEX(Ассортимент!$A:$D,ROW(),COLUMN())","v":0}]
[{"$f":"INDEX(Ассортимент!$A:$D,ROW(),COLUMN())","v":0},{"$f":"INDEX(Ассортимент!$A:$D,ROW(),COLUMN())","v":0},{"$f":"INDEX(Ассортимент!$A:$D,ROW(),COLUMN())","v":0},{"$f":"INDEX(Ассортимент!$A:$D,ROW(),COLUMN())","v":0}]
[{"$f":"INDEX(Ассортимент!$A:$D,ROW(),COLUMN())","v":0},{"$f":"INDEX(Ассортимент!$A:$D,ROW(),COLUMN())","v":0},{"$f":"INDEX(Ассортимент!$A:$D,ROW(),COLUMN())","v":0},{"$f":"INDEX(Ассортимент!$A:$D,ROW(),COLUMN())","v":0}]
[{"$f":"INDEX(Ассортимент!$A:$D,ROW(),COLUMN())","v":0},{"$f":"INDEX(Ассортимент!$A:$D,ROW(),COLUMN())","v":0},{"$f":"INDEX(Ассортимент!$A:$D,ROW(),COLUMN())","v":0},{"$f":"INDEX(Ассортимент!$A:$D,ROW(),COLUMN())","v":0}]
[{"$f":"INDEX(Ассортимент!$A:$D,ROW(),COLUMN())","v":0},{"$f":"INDEX(Ассортимент!$A:$D,ROW(),COLUMN())","v":0},{"$f":"INDEX(Ассортимент!$A:$D,ROW(),COLUMN())","v":0},{"$f":"INDEX(Ассортимент!$A:$D,ROW(),COLUMN())","v":0}]
[{"$f":"INDEX(Ассортимент!$A:$D,ROW(),COLUMN())","v":0},{"$f":"INDEX(Ассортимент!$A:$D,ROW(),COLUMN())","v":0},{"$f":"INDEX(Ассортимент!$A:$D,ROW(),COLUMN())","v":0},{"$f":"INDEX(Ассортимент!$A:$D,ROW(),COLUMN())","v":0}]
[{"$f":"INDEX(Ассортимент!$A:$D,ROW(),COLUMN())","v":0},{"$f":"INDEX(Ассортимент!$A:$D,ROW(),COLUMN())","v":0},{"$f":"INDEX(Ассортимент!$A:$D,ROW(),COLUMN())","v":0},{"$f":"INDEX(Ассортимент!$A:$D,ROW(),COLUMN())","v":0}]
[{"$f":"INDEX(Ассортимент!$A:$D,ROW(),COLUMN())","v":0},{"$f":"INDEX(Ассортимент!$A:$D,ROW(),COLUMN())","v":0},{"$f":"INDEX(Ассортимент!$A:$D,ROW(),COLUMN())","v":0},{"$f":"INDEX(Ассортимент!$A:$D,ROW(),COLUMN())","v":0}]
[{"$f":"INDEX(Ассортимент!$A:$D,ROW(),COLUMN())","v":0},{"$f":"INDEX(Ассортимент!$A:$D,ROW(),COLUMN())","v":0},{"$f":"INDEX(Ассортимент!$A:$D,ROW(),COLUMN())","v":0},{"$f":"INDEX(Ассортимент!$A:$D,ROW(),COLUMN())","v":0}]
[{"$f":"INDEX(Ассортимент!$A:$D,ROW(),COLUMN())","v":0},{"$f":"INDEX(Ассортимент!$A:$D,ROW(),COLUMN())","v":0},{"$f":"INDEX(Ассортимент!$A:$D,ROW(),COLUMN())","v":0},{"$f":"INDEX(Ассортимент!$A:$D,ROW(),COLUMN())","v":0}]
[{"$f":"INDEX(Ассортимент!$A:$D,ROW(),COLUMN())","v":0},{"$f":"INDEX(Ассортимент!$A:$D,ROW(),COLUMN())","v":0},{"$f":"INDEX(Ассортимент!$A:$D,ROW(),COLUMN())","v":0},{"$f":"INDEX(Ассортимент!$A:$D,ROW(),COLUMN())","v":0}]
[{"$f":"INDEX(Ассортимент!$A:$D,ROW(),COLUMN())","v":0},{"$f":"INDEX(Ассортимент!$A:$D,ROW(),COLUMN())","v":0},{"$f":"INDEX(Ассортимент!$A:$D,ROW(),COLUMN())","v":0},{"$f":"INDEX(Ассортимент!$A:$D,ROW(),COLUMN())","v":0}]
[{"$f":"INDEX(Ассортимент!$A:$D,ROW(),COLUMN())","v":0},{"$f":"INDEX(Ассортимент!$A:$D,ROW(),COLUMN())","v":0},{"$f":"INDEX(Ассортимент!$A:$D,ROW(),COLUMN())","v":0},{"$f":"INDEX(Ассортимент!$A:$D,ROW(),COLUMN())","v":0}]
[{"$f":"INDEX(Ассортимент!$A:$D,ROW(),COLUMN())","v":0},{"$f":"INDEX(Ассортимент!$A:$D,ROW(),COLUMN())","v":0},{"$f":"INDEX(Ассортимент!$A:$D,ROW(),COLUMN())","v":0},{"$f":"INDEX(Ассортимент!$A:$D,ROW(),COLUMN())","v":0}]
[{"$f":"INDEX(Ассортимент!$A:$D,ROW(),COLUMN())","v":0},{"$f":"INDEX(Ассортимент!$A:$D,ROW(),COLUMN())","v":0},{"$f":"INDEX(Ассортимент!$A:$D,ROW(),COLUMN())","v":0},{"$f":"INDEX(Ассортимент!$A:$D,ROW(),COLUMN())","v":0}]
[{"$f":"INDEX(Ассортимент!$A:$D,ROW(),COLUMN())","v":0},{"$f":"INDEX(Ассортимент!$A:$D,ROW(),COLUMN())","v":0},{"$f":"INDEX(Ассортимент!$A:$D,ROW(),COLUMN())","v":0},{"$f":"INDEX(Ассортимент!$A:$D,ROW(),COLUMN())","v":0}]
[{"$f":"INDEX(Ассортимент!$A:$D,ROW(),COLUMN())","v":0},{"$f":"INDEX(Ассортимент!$A:$D,ROW(),COLUMN())","v":0},{"$f":"INDEX(Ассортимент!$A:$D,ROW(),COLUMN())","v":0},{"$f":"INDEX(Ассортимент!$A:$D,ROW(),COLUMN())","v":0}]
[{"$f":"INDEX(Ассортимент!$A:$D,ROW(),COLUMN())","v":0},{"$f":"INDEX(Ассортимент!$A:$D,ROW(),COLUMN())","v":0},{"$f":"INDEX(Ассортимент!$A:$D,ROW(),COLUMN())","v":0},{"$f":"INDEX(Ассортимент!$A:$D,ROW(),COLUMN())","v":0}]
[{"$f":"INDEX(Ассортимент!$A:$D,ROW(),COLUMN())","v":0},{"$f":"INDEX(Ассортимент!$A:$D,ROW(),COLUMN())","v":0},{"$f":"INDEX(Ассортимент!$A:$D,ROW(),COLUMN())","v":0},{"$f":"INDEX(Ассортимент!$A:$D,ROW(),COLUMN())","v":0}]
[{"$f":"INDEX(Ассортимент!$A:$D,ROW(),COLUMN())","v":0},{"$f":"INDEX(Ассортимент!$A:$D,ROW(),COLUMN())","v":0},{"$f":"INDEX(Ассортимент!$A:$D,ROW(),COLUMN())","v":0},{"$f":"INDEX(Ассортимент!$A:$D,ROW(),COLUMN())","v":0}]
[{"$f":"INDEX(Ассортимент!$A:$D,ROW(),COLUMN())","v":0},{"$f":"INDEX(Ассортимент!$A:$D,ROW(),COLUMN())","v":0},{"$f":"INDEX(Ассортимент!$A:$D,ROW(),COLUMN())","v":0},{"$f":"INDEX(Ассортимент!$A:$D,ROW(),COLUMN())","v":0}]
[{"$f":"INDEX(Ассортимент!$A:$D,ROW(),COLUMN())","v":0},{"$f":"INDEX(Ассортимент!$A:$D,ROW(),COLUMN())","v":0},{"$f":"INDEX(Ассортимент!$A:$D,ROW(),COLUMN())","v":0},{"$f":"INDEX(Ассортимент!$A:$D,ROW(),COLUMN())","v":0}]
[{"$f":"INDEX(Ассортимент!$A:$D,ROW(),COLUMN())","v":0},{"$f":"INDEX(Ассортимент!$A:$D,ROW(),COLUMN())","v":0},{"$f":"INDEX(Ассортимент!$A:$D,ROW(),COLUMN())","v":0},{"$f":"INDEX(Ассортимент!$A:$D,ROW(),COLUMN())","v":0}]
[{"$f":"INDEX(Ассортимент!$A:$D,ROW(),COLUMN())","v":0},{"$f":"INDEX(Ассортимент!$A:$D,ROW(),COLUMN())","v":0},{"$f":"INDEX(Ассортимент!$A:$D,ROW(),COLUMN())","v":0},{"$f":"INDEX(Ассортимент!$A:$D,ROW(),COLUMN())","v":0}]
[{"$f":"INDEX(Ассортимент!$A:$D,ROW(),COLUMN())","v":0},{"$f":"INDEX(Ассортимент!$A:$D,ROW(),COLUMN())","v":0},{"$f":"INDEX(Ассортимент!$A:$D,ROW(),COLUMN())","v":0},{"$f":"INDEX(Ассортимент!$A:$D,ROW(),COLUMN())","v":0}]
[{"$f":"INDEX(Ассортимент!$A:$D,ROW(),COLUMN())","v":0},{"$f":"INDEX(Ассортимент!$A:$D,ROW(),COLUMN())","v":0},{"$f":"INDEX(Ассортимент!$A:$D,ROW(),COLUMN())","v":0},{"$f":"INDEX(Ассортимент!$A:$D,ROW(),COLUMN())","v":0}]
[{"$f":"INDEX(Ассортимент!$A:$D,ROW(),COLUMN())","v":0},{"$f":"INDEX(Ассортимент!$A:$D,ROW(),COLUMN())","v":0},{"$f":"INDEX(Ассортимент!$A:$D,ROW(),COLUMN())","v":0},{"$f":"INDEX(Ассортимент!$A:$D,ROW(),COLUMN())","v":0}]
[{"$f":"INDEX(Ассортимент!$A:$D,ROW(),COLUMN())","v":0},{"$f":"INDEX(Ассортимент!$A:$D,ROW(),COLUMN())","v":0},{"$f":"INDEX(Ассортимент!$A:$D,ROW(),COLUMN())","v":0},{"$f":"INDEX(Ассортимент!$A:$D,ROW(),COLUMN())","v":0}]
[{"$f":"INDEX(Ассортимент!$A:$D,ROW(),COLUMN())","v":0},{"$f":"INDEX(Ассортимент!$A:$D,ROW(),COLUMN())","v":0},{"$f":"INDEX(Ассортимент!$A:$D,ROW(),COLUMN())","v":0},{"$f":"INDEX(Ассортимент!$A:$D,ROW(),COLUMN())","v":0}]
[{"$f":"INDEX(Ассортимент!$A:$D,ROW(),COLUMN())","v":0},{"$f":"INDEX(Ассортимент!$A:$D,ROW(),COLUMN())","v":0},{"$f":"INDEX(Ассортимент!$A:$D,ROW(),COLUMN())","v":0},{"$f":"INDEX(Ассортимент!$A:$D,ROW(),COLUMN())","v":0}]
[{"$f":"INDEX(Ассортимент!$A:$D,ROW(),COLUMN())","v":0},{"$f":"INDEX(Ассортимент!$A:$D,ROW(),COLUMN())","v":0},{"$f":"INDEX(Ассортимент!$A:$D,ROW(),COLUMN())","v":0},{"$f":"INDEX(Ассортимент!$A:$D,ROW(),COLUMN())","v":0}]
[{"$f":"INDEX(Ассортимент!$A:$D,ROW(),COLUMN())","v":0},{"$f":"INDEX(Ассортимент!$A:$D,ROW(),COLUMN())","v":0},{"$f":"INDEX(Ассортимент!$A:$D,ROW(),COLUMN())","v":0},{"$f":"INDEX(Ассортимент!$A:$D,ROW(),COLUMN())","v":0}]
[{"$f":"INDEX(Ассортимент!$A:$D,ROW(),COLUMN())","v":0},{"$f":"INDEX(Ассортимент!$A:$D,ROW(),COLUMN())","v":0},{"$f":"INDEX(Ассортимент!$A:$D,ROW(),COLUMN())","v":0},{"$f":"INDEX(Ассортимент!$A:$D,ROW(),COLUMN())","v":0}]
[{"$f":"INDEX(Ассортимент!$A:$D,ROW(),COLUMN())","v":0},{"$f":"INDEX(Ассортимент!$A:$D,ROW(),COLUMN())","v":0},{"$f":"INDEX(Ассортимент!$A:$D,ROW(),COLUMN())","v":0},{"$f":"INDEX(Ассортимент!$A:$D,ROW(),COLUMN())","v":0}]
[{"$f":"INDEX(Ассортимент!$A:$D,ROW(),COLUMN())","v":0},{"$f":"INDEX(Ассортимент!$A:$D,ROW(),COLUMN())","v":0},{"$f":"INDEX(Ассортимент!$A:$D,ROW(),COLUMN())","v":0},{"$f":"INDEX(Ассортимент!$A:$D,ROW(),COLUMN())","v":0}]
[{"$f":"INDEX(Ассортимент!$A:$D,ROW(),COLUMN())","v":0},{"$f":"INDEX(Ассортимент!$A:$D,ROW(),COLUMN())","v":0},{"$f":"INDEX(Ассортимент!$A:$D,ROW(),COLUMN())","v":0},{"$f":"INDEX(Ассортимент!$A:$D,ROW(),COLUMN())","v":0}]
[{"$f":"INDEX(Ассортимент!$A:$D,ROW(),COLUMN())","v":0},{"$f":"INDEX(Ассортимент!$A:$D,ROW(),COLUMN())","v":0},{"$f":"INDEX(Ассортимент!$A:$D,ROW(),COLUMN())","v":0},{"$f":"INDEX(Ассортимент!$A:$D,ROW(),COLUMN())","v":0}]
[{"$f":"INDEX(Ассортимент!$A:$D,ROW(),COLUMN())","v":0},{"$f":"INDEX(Ассортимент!$A:$D,ROW(),COLUMN())","v":0},{"$f":"INDEX(Ассортимент!$A:$D,ROW(),COLUMN())","v":0},{"$f":"INDEX(Ассортимент!$A:$D,ROW(),COLUMN())","v":0}]
[{"$f":"INDEX(Ассортимент!$A:$D,ROW(),COLUMN())","v":0},{"$f":"INDEX(Ассортимент!$A:$D,ROW(),COLUMN())","v":0},{"$f":"INDEX(Ассортимент!$A:$D,ROW(),COLUMN())","v":0},{"$f":"INDEX(Ассортимент!$A:$D,ROW(),COLUMN())","v":0}]
[{"$f":"INDEX(Ассортимент!$A:$D,ROW(),COLUMN())","v":0},{"$f":"INDEX(Ассортимент!$A:$D,ROW(),COLUMN())","v":0},{"$f":"INDEX(Ассортимент!$A:$D,ROW(),COLUMN())","v":0},{"$f":"INDEX(Ассортимент!$A:$D,ROW(),COLUMN())","v":0}]
[{"$f":"INDEX(Ассортимент!$A:$D,ROW(),COLUMN())","v":0},{"$f":"INDEX(Ассортимент!$A:$D,ROW(),COLUMN())","v":0},{"$f":"INDEX(Ассортимент!$A:$D,ROW(),COLUMN())","v":0},{"$f":"INDEX(Ассортимент!$A:$D,ROW(),COLUMN())","v":0}]
[{"$f":"INDEX(Ассортимент!$A:$D,ROW(),COLUMN())","v":0},{"$f":"INDEX(Ассортимент!$A:$D,ROW(),COLUMN())","v":0},{"$f":"INDEX(Ассортимент!$A:$D,ROW(),COLUMN())","v":0},{"$f":"INDEX(Ассортимент!$A:$D,ROW(),COLUMN())","v":0}]
[{"$f":"INDEX(Ассортимент!$A:$D,ROW(),COLUMN())","v":0},{"$f":"INDEX(Ассортимент!$A:$D,ROW(),COLUMN())","v":0},{"$f":"INDEX(Ассортимент!$A:$D,ROW(),COLUMN())","v":0},{"$f":"INDEX(Ассортимент!$A:$D,ROW(),COLUMN())","v":0}]
[{"$f":"INDEX(Ассортимент!$A:$D,ROW(),COLUMN())","v":0},{"$f":"INDEX(Ассортимент!$A:$D,ROW(),COLUMN())","v":0},{"$f":"INDEX(Ассортимент!$A:$D,ROW(),COLUMN())","v":0},{"$f":"INDEX(Ассортимент!$A:$D,ROW(),COLUMN())","v":0}]
[{"$f":"INDEX(Ассортимент!$A:$D,ROW(),COLUMN())","v":0},{"$f":"INDEX(Ассортимент!$A:$D,ROW(),COLUMN())","v":0},{"$f":"INDEX(Ассортимент!$A:$D,ROW(),COLUMN())","v":0},{"$f":"INDEX(Ассортимент!$A:$D,ROW(),COLUMN())","v":0}]
[{"$f":"INDEX(Ассортимент!$A:$D,ROW(),COLUMN())","v":0},{"$f":"INDEX(Ассортимент!$A:$D,ROW(),COLUMN())","v":0},{"$f":"INDEX(Ассортимент!$A:$D,ROW(),COLUMN())","v":0},{"$f":"INDEX(Ассортимент!$A:$D,ROW(),COLUMN())","v":0}]
[{"$f":"INDEX(Ассортимент!$A:$D,ROW(),COLUMN())","v":0},{"$f":"INDEX(Ассортимент!$A:$D,ROW(),COLUMN())","v":0},{"$f":"INDEX(Ассортимент!$A:$D,ROW(),COLUMN())","v":0},{"$f":"INDEX(Ассортимент!$A:$D,ROW(),COLUMN())","v":0}]
[{"$f":"INDEX(Ассортимент!$A:$D,ROW(),COLUMN())","v":0},{"$f":"INDEX(Ассортимент!$A:$D,ROW(),COLUMN())","v":0},{"$f":"INDEX(Ассортимент!$A:$D,ROW(),COLUMN())","v":0},{"$f":"INDEX(Ассортимент!$A:$D,ROW(),COLUMN())","v":0}]
[{"$f":"INDEX(Ассортимент!$A:$D,ROW(),COLUMN())","v":0},{"$f":"INDEX(Ассортимент!$A:$D,ROW(),COLUMN())","v":0},{"$f":"INDEX(Ассортимент!$A:$D,ROW(),COLUMN())","v":0},{"$f":"INDEX(Ассортимент!$A:$D,ROW(),COLUMN())","v":0}]
[{"$f":"INDEX(Ассортимент!$A:$D,ROW(),COLUMN())","v":0},{"$f":"INDEX(Ассортимент!$A:$D,ROW(),COLUMN())","v":0},{"$f":"INDEX(Ассортимент!$A:$D,ROW(),COLUMN())","v":0},{"$f":"INDEX(Ассортимент!$A:$D,ROW(),COLUMN())","v":0}]
[{"$f":"INDEX(Ассортимент!$A:$D,ROW(),COLUMN())","v":0},{"$f":"INDEX(Ассортимент!$A:$D,ROW(),COLUMN())","v":0},{"$f":"INDEX(Ассортимент!$A:$D,ROW(),COLUMN())","v":0},{"$f":"INDEX(Ассортимент!$A:$D,ROW(),COLUMN())","v":0}]
[{"$f":"INDEX(Ассортимент!$A:$D,ROW(),COLUMN())","v":0},{"$f":"INDEX(Ассортимент!$A:$D,ROW(),COLUMN())","v":0},{"$f":"INDEX(Ассортимент!$A:$D,ROW(),COLUMN())","v":0},{"$f":"INDEX(Ассортимент!$A:$D,ROW(),COLUMN())","v":0}]
[{"$f":"INDEX(Ассортимент!$A:$D,ROW(),COLUMN())","v":0},{"$f":"INDEX(Ассортимент!$A:$D,ROW(),COLUMN())","v":0},{"$f":"INDEX(Ассортимент!$A:$D,ROW(),COLUMN())","v":0},{"$f":"INDEX(Ассортимент!$A:$D,ROW(),COLUMN())","v":0}]
[{"$f":"INDEX(Ассортимент!$A:$D,ROW(),COLUMN())","v":0},{"$f":"INDEX(Ассортимент!$A:$D,ROW(),COLUMN())","v":0},{"$f":"INDEX(Ассортимент!$A:$D,ROW(),COLUMN())","v":0},{"$f":"INDEX(Ассортимент!$A:$D,ROW(),COLUMN())","v":0}]
[{"$f":"INDEX(Ассортимент!$A:$D,ROW(),COLUMN())","v":0},{"$f":"INDEX(Ассортимент!$A:$D,ROW(),COLUMN())","v":0},{"$f":"INDEX(Ассортимент!$A:$D,ROW(),COLUMN())","v":0},{"$f":"INDEX(Ассортимент!$A:$D,ROW(),COLUMN())","v":0}]
[{"$f":"INDEX(Ассортимент!$A:$D,ROW(),COLUMN())","v":0},{"$f":"INDEX(Ассортимент!$A:$D,ROW(),COLUMN())","v":0},{"$f":"INDEX(Ассортимент!$A:$D,ROW(),COLUMN())","v":0},{"$f":"INDEX(Ассортимент!$A:$D,ROW(),COLUMN())","v":0}]